{"text_format":"3","workbook":"xlsx","n_sheets":36,"sheets":["Инструкция","Обновление","Лог обновления","Выбор субъекта РФ","Титульный","ТС цены","ТС цены (2)","Ссылки на публикации","Комментарии","Проверка","AllSheetsInThisWorkbook","et_union","TEHSHEET","REESTR_ORG","REESTR_FILTERED","REESTR_MO","modHyperlink","modChange","modfrmReestr","modPROV","modTitleSheetHeaders","modServiceModule","modClassifierValidate","modWindowClipboard","modInfo","modfrmDateChoose","modReestrMO","modDblClick","modUpdTemplMain","modSheetMain01","modSheetMain02","modSheetMain03","modSheetMain04","modSheetMain05","modRegionSelectSub","Паспорт"],"not_rendered":{"images":12,"macros":1,"defined_names":136},"read":"whole","date_system":"1900"}

{"sheet":"Инструкция","index":0,"n_rows":37,"n_cols":10,"rows_kept":37,"merged":[[3,1,3,9],[6,2,6,7],[7,2,7,7],[8,2,8,7],[9,2,9,7],[17,2,17,7],[18,2,18,7],[19,2,19,7],[20,2,20,7],[21,2,21,7],[22,2,22,4],[23,2,23,3],[23,4,23,7],[24,2,24,3],[24,4,24,7],[25,2,25,3],[25,4,25,7],[26,2,26,3],[26,4,26,7],[27,2,27,3],[27,4,27,7],[28,2,28,3],[28,4,28,7],[29,2,29,3],[29,4,29,7],[31,2,31,4],[32,2,32,3],[32,4,32,7],[33,2,33,3],[33,4,33,7],[34,2,34,3],[34,4,34,7],[35,2,35,3],[35,4,35,7],[36,2,36,3],[36,4,36,7]]}
[]
[{"$nulls":9},"Код шаблона: JKH.OPEN.INFO.PRICE.WARM"]
[{"$nulls":9},{"$f":"\"Версия \" & GetVersion()","v":"Версия 4.7"}]
[null,"Инструкция по заполнению шаблона"]
[]
[]
[null,null,"Технические требования:\n\n• макросы во время работы должны быть включены \n\n"]
[null,null,"• на рабочем месте должен быть установлен MS Office 2003, 2007, 2010 x86 с полной версией MS Excel"]
[null,null,"• макросы во время работы должны быть включены "]
[null,null,"• для корректной работы шаблона требуется выбрать низкий уровень безопасности\n(В меню MS Excel 2003: Сервис ¦ Макрос ¦ Безопасность ¦ выбрать нижний пункт «Низкая безопасность» ¦ «OK»)\n(В MS Excel 2007 после открытия файла шаблона нажать на кнопку «Параметры…» в строке «Предупреждение системы безопасности», далее выбрать «Включить это содержимое» ¦ «OK»)"]
[]
[{"$nulls":3},"●","голубой – ячейки, обязательные для заполнения;"]
[{"$nulls":3},"●","жёлтый – ячейки, предназначенные для заполнения;"]
[{"$nulls":3},"●","зелёный – ячейки с формулами и константами. "]
[]
[{"$nulls":4},"Пояснение к заполнению (необходимо нажать один раз)."]
[]
[null,null,"Шаблон может быть сохранен на любом этапе заполнения!"]
[null,null,"• При сохранении шаблона осуществляется проверка на наличие и корректность (например, КПП – 9 цифр) обязательных параметров на листах. "]
[null,null,"• Если какая-то ячейка не удовлетворяет условию проверки, на лист «Проверка» добавляется гиперссылка на данную ячейку и причина, по которой шаблон не будет загружен в хранилище данных. "]
[null,null,"• В колонке «Статус ошибки» для каждого сообщения возможны 2 значения: ошибка и предупреждение. "]
[null,null,"• При наличии сообщений со статусом «Ошибка» шаблон будет отклонён системой, сообщения со статусом «Предупреждение» носят информационный характер, и такой шаблон будет принят системой."]
[null,null,"Организационно-технические консультации:"]
[null,null,"ФИО:"]
[null,null,"телефон:"]
[null,null,"e-mail:"]
[null,null,"WEB-сайт:"]
[null,null,"Комментарий"]
[null,null,"Дистрибутивы:",null,"Для устранения проблем с MS Excel (например, \"Compile error in hidden module\") воспользуйтесь пакетами библиотек: "]
[null,null,"Дистрибутивы (ссылка):",null,"http://eias.ru/?page=show_distrs"]
[]
[null,null,"Консультации по методологии заполнения форм:"]
[null,null,"ФИО:"]
[null,null,"телефон:"]
[null,null,"e-mail:"]
[null,null,"WEB-сайт:"]
[null,null,"Комментарий"]

{"sheet":"Обновление","index":1,"n_rows":24,"n_cols":15,"rows_kept":24,"merged":[[1,14,1,16],[2,2,2,15],[23,2,23,7],[23,8,23,15]]}
[]
[{"$nulls":14},{"$f":"version","v":"Версия 4.7"}]
[null,null,"Инструкция по обновлению шаблона"]
{"$rows_empty":20}
[null,null,"Если компьютер имеет подключение к Интернет, можно автоматически проверять наличие доступных обновлений. Выберите способ оповещения о наличии обновлений для шаблона:"]

{"sheet":"Лог обновления","index":2,"n_rows":46,"n_cols":3,"rows_kept":46}
["Дата/Время","Сообщение","Статус"]
["11/28/2012  11:22:28 AM","Проверка доступных обновлений...","Информация"]
["11/28/2012  11:22:29 AM","Версия шаблона 4.7 актуальна, обновление не требуется","Информация"]
["12/17/2012  7:44:00 AM","Проверка доступных обновлений...","Информация"]
["12/17/2012  7:44:18 AM","Нет доступных обновлений для шаблона с кодом JKH.OPEN.INFO.PRICE.WARM!","Информация"]
["12/17/2012  8:03:40 AM","Проверка доступных обновлений...","Информация"]
["12/17/2012  8:03:58 AM","Нет доступных обновлений для шаблона с кодом JKH.OPEN.INFO.PRICE.WARM!","Информация"]
["12/17/2012  8:27:53 AM","Проверка доступных обновлений...","Информация"]
["12/17/2012  8:27:54 AM","Версия шаблона 4.7 актуальна, обновление не требуется","Информация"]
["12/17/2012  8:44:18 AM","Проверка доступных обновлений...","Информация"]
["12/17/2012  8:44:19 AM","Версия шаблона 4.7 актуальна, обновление не требуется","Информация"]
["12/17/2012  8:51:16 AM","Проверка доступных обновлений...","Информация"]
["12/17/2012  8:51:17 AM","Версия шаблона 4.7 актуальна, обновление не требуется","Информация"]
["12/17/2012  8:57:43 AM","Проверка доступных обновлений...","Информация"]
["12/17/2012  8:57:44 AM","Версия шаблона 4.7 актуальна, обновление не требуется","Информация"]
["12/17/2012  8:59:53 AM","Проверка доступных обновлений...","Информация"]
["12/17/2012  8:59:54 AM","Версия шаблона 4.7 актуальна, обновление не требуется","Информация"]
["12/17/2012  9:00:03 AM","Проверка доступных обновлений...","Информация"]
["12/17/2012  9:00:04 AM","Версия шаблона 4.7 актуальна, обновление не требуется","Информация"]
["12/19/2012  9:09:39 AM","Проверка доступных обновлений...","Информация"]
["12/19/2012  9:09:40 AM","Версия шаблона 4.7 актуальна, обновление не требуется","Информация"]
["12/19/2012  3:28:14 PM","Проверка доступных обновлений...","Информация"]
["12/19/2012  3:28:15 PM","Версия шаблона 4.7 актуальна, обновление не требуется","Информация"]
["12/20/2012  7:46:18 AM","Проверка доступных обновлений...","Информация"]
["12/20/2012  7:46:20 AM","Версия шаблона 4.7 актуальна, обновление не требуется","Информация"]
["12/24/2012  9:45:44 AM","Проверка доступных обновлений...","Информация"]
["12/24/2012  9:45:45 AM","Версия шаблона 4.7 актуальна, обновление не требуется","Информация"]
["12/24/2012  9:52:59 AM","Проверка доступных обновлений...","Информация"]
["12/24/2012  9:53:00 AM","Версия шаблона 4.7 актуальна, обновление не требуется","Информация"]
["12/25/2012  12:15:05 PM","Проверка доступных обновлений...","Информация"]
["12/25/2012  12:15:06 PM","Версия шаблона 4.7 актуальна, обновление не требуется","Информация"]
["7/2/2013  4:13:09 PM","Проверка доступных обновлений...","Информация"]
["7/2/2013  4:13:10 PM","Доступно обновление до версии 5.1","Информация"]
["7/2/2013  4:13:10 PM","Описание изменений: До версии 5.1:\n1. обновление проверки перед сохранением,\n2. скорректировано обновление реестра МР/МО,\n3. скорректирована проверка листа 'Ссылки на публикации'/\n\nПосле обновления шаблона при необходимости обновите реестр МР/МО и сохраните шаблон.","Информация"]
["7/2/2013  4:13:10 PM","Размер файла обновления: 800256 байт","Информация"]
["7/2/2013  4:13:47 PM","Обновление отменено пользователем","Предупреждение"]
["7/3/2013  9:12:05 AM","Проверка доступных обновлений...","Информация"]
["7/3/2013  9:12:06 AM","Доступно обновление до версии 5.1","Информация"]
["7/3/2013  9:12:06 AM","Описание изменений: До версии 5.1:\n1. обновление проверки перед сохранением,\n2. скорректировано обновление реестра МР/МО,\n3. скорректирована проверка листа 'Ссылки на публикации'/\n\nПосле обновления шаблона при необходимости обновите реестр МР/МО и сохраните шаблон.","Информация"]
["7/3/2013  9:12:06 AM","Размер файла обновления: 800256 байт","Информация"]
["7/3/2013  9:12:08 AM","Обновление отменено пользователем","Предупреждение"]
["7/8/2013  3:42:33 PM","Проверка доступных обновлений...","Информация"]
["7/8/2013  3:42:34 PM","Доступно обновление до версии 5.1","Информация"]
["7/8/2013  3:42:34 PM","Описание изменений: До версии 5.1:\n1. обновление проверки перед сохранением,\n2. скорректировано обновление реестра МР/МО,\n3. скорректирована проверка листа 'Ссылки на публикации'/\n\nПосле обновления шаблона при необходимости обновите реестр МР/МО и сохраните шаблон.","Информация"]
["7/8/2013  3:42:34 PM","Размер файла обновления: 800256 байт","Информация"]
["7/8/2013  3:42:36 PM","Обновление отменено пользователем","Предупреждение"]

{"sheet":"Выбор субъекта РФ","index":3,"n_rows":3,"n_cols":6,"rows_kept":3,"hidden":true,"merged":[[2,3,2,4],[2,5,2,8]]}
[]
[{"$nulls":5},84]
[{"$nulls":3},"Субъект РФ",null,"Ярославская область"]

{"sheet":"Титульный","index":4,"n_rows":75,"n_cols":9,"rows_kept":75,"merged":[[3,2,3,8],[6,4,6,5],[8,4,8,5],[10,4,10,6],[11,4,11,5],[12,4,12,5],[14,4,14,5],[17,4,17,6],[18,4,18,5],[20,4,20,5],[22,4,22,5],[23,4,23,5],[25,4,25,5],[27,4,27,5],[28,4,28,5],[29,4,29,5],[31,4,31,6],[32,4,32,5],[33,4,33,5],[34,4,34,5],[35,4,35,5],[37,4,37,5],[39,4,39,5],[41,4,41,5],[43,4,43,5],[45,4,45,6],[46,4,46,5],[47,4,47,5],[50,4,50,6],[51,5,51,6],[53,4,54,4],[58,4,58,6],[59,4,59,5],[60,4,60,5],[62,4,62,6],[63,4,63,5],[64,4,64,5],[66,4,66,6],[67,4,67,5],[68,4,68,5],[70,4,70,6],[71,4,71,5],[72,4,72,5],[73,4,73,5],[74,4,74,5]]}
[{"$f":"region_name","v":"Ярославская область"},null,{"$f":"org&\"_INN:\"&inn&\"_KPP:\"&kpp","v":"ОАО \"Яргортеплоэнерго\"_INN:7606047507_KPP:760601001"}]
[{"$f":"IF(org=\"\",\"Не определено\",org)","v":"ОАО \"Яргортеплоэнерго\""},{"$f":"IF(inn=\"\",\"Не определено\",inn)","v":"7606047507"},{"$nulls":6},{"$f":"codeTemplate","v":"Код шаблона: JKH.OPEN.INFO.PRICE.WARM"}]
[{"$nulls":8},{"$f":"version","v":"Версия 4.7"}]
[{"$f":"IF(fil=\"\",\"Не определено\",fil)","v":"Не определено"},{"$f":"IF(kpp=\"\",\"Не определено\",kpp)","v":"760601001"},"Показатели подлежащие раскрытию  в сфере теплоснабжения и сфере оказания услуг по передаче тепловой энергии (Цены и тарифы)"]
[]
[{"$nulls":4},"Создать печатную форму"]
[{"$nulls":4},"Субъект РФ",null,"Ярославская область"]
[]
["L0",{"$nulls":3},"Публикация",null,"на сайте регулирующего органа"]
[]
[{"$nulls":4},"Период регулирования"]
[{"$nulls":4},"Начало очередного периода регулирования",null,"01.01.2013"]
[{"$nulls":4},"Окончание очередного периода регулирования",null,"31.12.2013"]
[]
["L0",{"$nulls":3},"Является ли данное юридическое лицо подразделением (филиалом) другой организации",null,"нет"]
[]
[]
[66,{"$nulls":3},"Дата последнего обновления реестра организаций: 28.11.2012 11:22:41"]
[{"$nulls":4},"Наименование ??? организации",null,"ОАО \"Яргортеплоэнерго\""]
[]
[{"$nulls":4},"Наименование ПОДРАЗДЕЛЕНИЯ"]
[]
[{"$nulls":4},"ИНН ???",null,"7606047507"]
[{"$nulls":4},"КПП ???",null,"760601001"]
[]
[{"$nulls":4},"Вид деятельности, на которую установлен тариф",null,"Некомбинированная выработка"]
[]
[{"$nulls":4},"Производство",null,"да"]
[{"$nulls":4},"Передача",null,"нет"]
[{"$nulls":4},"Сбыт",null,"нет"]
[]
[{"$nulls":4},"НДС (отметка об учтенном НДС)"]
[{"$nulls":4},"Организации-перепродавцы",null,"тариф указан без НДС для плательщиков НДС"]
[{"$nulls":4},"Бюджетные потребители",null,"тариф указан без НДС для плательщиков НДС"]
[{"$nulls":4},"Население",null,"тариф с НДС организаций-плательщиков НДС"]
[{"$nulls":4},"Прочие",null,"тариф указан без НДС для плательщиков НДС"]
[]
[{"$nulls":4},"Организация выполняет инвестиционную программу",null,"нет"]
[]
[{"$nulls":4},"Наличие 2-ставочного тарифа",null,"нет"]
[]
["да",{"$nulls":3},"Применить автозаполнение значения тарифа",null,"да"]
[]
[{"$nulls":4},"Вид тарифа на передачу тепловой энергии",null,"руб./Гкал"]
[]
[{"$nulls":4},"Система теплоснабжения"]
[{"$nulls":4},"Условный порядковый номер",null,"1"]
[{"$nulls":4},"Описание",null,"г. Ярославль"]
[]
[]
[{"$nulls":4},"Дата последнего обновления реестра МР/МО: 17.12.2012 8:15:45"]
[{"$nulls":4},"Муниципальный район, на территории которого размещена система теплоснабжения","Муниципальное образование, на территории которого размещена система теплоснабжения"]
[{"$nulls":4},"Наименование МР","Наименование МО","ОКТМО"]
[{"$nulls":4},"Городской округ г.Ярославль","г. Ярославль","78701000"]
[{"$nulls":5},"Добавить МО"]
[{"$nulls":4},"Добавить МР"]
[]
[]
[{"$nulls":4},"Адрес организации"]
[{"$nulls":4},"Юридический адрес:",null,"150054 г.Ярославль ул.Чехова 28А"]
[{"$nulls":4},"Почтовый адрес:",null,"150054 г.Ярославль ул.Чехова 28А"]
[]
[{"$nulls":4},"Руководитель"]
[{"$nulls":4},"Фамилия, имя, отчество:",null,"Медведев Борис Анатольевич"]
[{"$nulls":4},"(код) номер телефона:",null,"73-99-02"]
[]
[{"$nulls":4},"Главный бухгалтер"]
[{"$nulls":4},"Фамилия, имя, отчество:",null,"Склянкина Ольга Николаевна"]
[{"$nulls":4},"(код) номер телефона:",null,"32-09-45"]
[]
[{"$nulls":4},"Должностное лицо, ответственное за составление формы"]
[{"$nulls":4},"Фамилия, имя, отчество:",null,"Менюк Надежда Ивановна"]
[{"$nulls":4},"Должность:",null,"Экономист"]
[{"$nulls":4},"(код) номер телефона:",null,"73-99-05"]
[{"$nulls":4},"e-mail:",null,"YGTE@YGTE.RU"]

{"sheet":"ТС цены","index":5,"n_rows":49,"n_cols":25,"rows_kept":49,"merged":[[11,2,11,25],[12,2,12,25],[15,4,17,4],[15,5,17,6],[15,7,15,9],[15,10,15,12],[15,13,15,15],[15,16,15,18],[15,19,17,19],[15,20,17,20],[15,21,16,22],[15,23,17,23],[15,24,17,24],[16,7,17,7],[16,8,16,9],[16,10,17,10],[16,11,16,12],[16,13,17,13],[16,14,16,15],[16,16,17,16],[16,17,16,18],[18,5,18,6],[19,4,20,4],[19,5,20,5],[22,4,23,4],[22,5,23,5],[24,4,25,4],[24,5,25,5],[27,4,28,4],[27,5,28,5],[29,4,30,4],[29,5,30,5],[31,4,32,4],[31,5,32,5],[33,4,34,4],[33,5,34,5],[35,4,36,4],[35,5,36,5],[37,4,38,4],[37,5,38,5],[40,4,41,4],[40,5,41,5],[43,4,44,4],[43,5,44,5]]}
[{"$nulls":8},"two","two",null,"two","two",null,"two","two",null,"two","two"]
{"$rows_empty":8}
[null,null,{"$f":"codeTemplate","v":"Код шаблона: JKH.OPEN.INFO.PRICE.WARM"}]
[]
[null,null,"Информация о ценах (тарифах) на регулируемые товары и услуги и надбавках к этим ценам (тарифам) *"]
[null,null,{"$f":"IF(org=\"\",\"\",IF(fil=\"\",org,org & \" (\" & fil & \")\")) & IF(OR(godStart=\"\",godEnd=\"\"),\"\",\", \"&YEAR(godStart)& \"-\" & YEAR(godEnd)&\" гг.\")","v":"ОАО \"Яргортеплоэнерго\", 2013-2013 гг."}]
[]
[]
[{"$nulls":4},"№ п/п","Утвержденный тариф на тепловую энергию (мощность)/ дифференциация по видам теплоносителя",null,{"$f":"\"Организации-перепродавцы\"& IF(Титульный!G33=\"тариф указан с НДС для плательщиков НДС\",\", с учётом НДС\",IF(Титульный!G33=\"тариф указан без НДС для плательщиков НДС\",\", без учёта НДС\",\"\"))","v":"Организации-перепродавцы, без учёта НДС"},null,null,{"$f":"\"Бюджетные потребители\"& IF(Титульный!G34=\"тариф указан с НДС для плательщиков НДС\",\", с учётом НДС\",IF(Титульный!G34=\"тариф указан без НДС для плательщиков НДС\",\", без учёта НДС\",\"\"))","v":"Бюджетные потребители, без учёта НДС"},null,null,{"$f":"\"Население\"& IF(Титульный!G35=\"тариф с НДС организаций-плательщиков НДС\",\", с учётом НДС\",\"\")","v":"Население, с учётом НДС"},null,null,{"$f":"\"Прочие\"& IF(Титульный!G36=\"тариф указан с НДС для плательщиков НДС\",\", с учётом НДС\",IF(Титульный!G36=\"тариф указан без НДС для плательщиков НДС\",\", без учёта НДС\",\"\"))","v":"Прочие, без учёта НДС"},null,null,"Дата ввода","Срок действия","Постановление",null,"Наименование регулирующего органа, принявшего решение об утверждении цен","Источник официального опубликования органом, принявшим решение об утверждении цены (тарифа, надбавки)"]
[{"$nulls":7},"Одноставочный тариф, руб./Гкал","Двухставочный тариф",null,"Одноставочный тариф, руб./Гкал","Двухставочный тариф",null,"Одноставочный тариф, руб./Гкал","Двухставочный тариф",null,"Одноставочный тариф, руб./Гкал","Двухставочный тариф"]
[{"$nulls":8},"ставка за энергию руб./Гкал","ставка за мощность тыс.руб.в месяц/Гкал/ч",null,"ставка за энергию руб./Гкал","ставка за мощность тыс.руб.в месяц/Гкал/ч",null,"ставка за энергию руб./Гкал","ставка за мощность тыс.руб.в месяц/Гкал/ч",null,"ставка за энергию руб./Гкал","ставка за мощность тыс.руб.в месяц/Гкал/ч",null,null,"дата","номер"]
[{"$nulls":4},1,"2",null,3,"3.1","3.2","4","4.1","4.2","5","5.1","5.2","6","6.1","6.2","7","8","9.1","9.2","10","11"]
[{"$nulls":4},"1.1","Тариф без дифференциации по видам теплоносителя","через тепловую сеть",{"v":0,"d":"0.00"},null,null,{"v":0,"d":"0.00"},null,null,{"v":0,"d":"0.00"},null,null,{"$f":"$H20","v":{"v":0,"d":"0.00"}},null,null,"01.01.2013","31.12.2013","30.11.2013","162","Департ.энергетики","газета Документ-Регион"]
[{"$nulls":6},"отпуск с коллекторов",{"v":0,"d":"0.00"},null,null,{"v":0,"d":"0.00"},null,null,{"v":0,"d":"0.00"},null,null,{"$f":"$H21","v":{"v":0,"d":"0.00"}},null,null,"01.01.2013","31.12.2013","30.11.2013","162","Департ.энергетики","газета Документ-Регион"]
[{"$nulls":5},"Добавить запись"]
[{"$nulls":4},"2.1","Горячая вода","через тепловую сеть",1381.33,null,null,1381.33,null,null,1629.97,null,null,{"$f":"$H23","v":1381.33},null,null,"01.01.2013","30.06.2013","30.11.2012","162","Департ.энергетики","газета Документ-Регион"]
[{"$nulls":6},"отпуск с коллекторов",1213.78,null,null,1213.78,null,null,1432.26,null,null,{"$f":"$H24","v":1213.78},null,null,"01.01.2013","30.06.2013","14.11.2012","131","Департ.энергетики","газета Документ-Регион"]
[{"$nulls":3},"Удалить запись","2.2","Горячая вода","через тепловую сеть",1476.49,null,null,1476.49,null,null,1742.26,null,null,{"$f":"$H25","v":1476.49},null,null,"01.07.2013","31.12.2013","30.11.2012","162","Департ.энергетики","газета Документ-Регион"]
[{"$nulls":6},"отпуск с коллекторов",1282.54,null,null,1282.54,null,null,{"v":1513.4,"d":"1513.40"},null,null,{"$f":"$H26","v":1282.54},null,null,"01.07.2013","31.12.2013","14.11.2012","131","Департ.энергетики","газета Документ-Регион"]
[{"$nulls":5},"Добавить запись"]
[{"$nulls":4},"3","Отборный пар всего, в том числе:","через тепловую сеть",{"v":0,"d":"0.00"},null,null,{"$f":"$H28","v":{"v":0,"d":"0.00"}},null,null,{"$f":"$H28","v":{"v":0,"d":"0.00"}},null,null,{"$f":"$H28","v":{"v":0,"d":"0.00"}}]
[{"$nulls":6},"отпуск с коллекторов",{"v":0,"d":"0.00"},null,null,{"v":0,"d":"0.00"},null,null,{"v":0,"d":"0.00"},null,null,{"v":0,"d":"0.00"}]
[{"$nulls":4},"3.1","1,2-2,5 кг/см2","через тепловую сеть",{"v":0,"d":"0.00"},null,null,{"v":0,"d":"0.00"},null,null,{"v":0,"d":"0.00"},null,null,{"v":0,"d":"0.00"}]
[{"$nulls":6},"отпуск с коллекторов",1274.53,null,null,{"v":0,"d":"0.00"},null,null,{"v":0,"d":"0.00"},null,null,1274.53,null,null,"01.01.2013","30.06.2013","14.11.2012","131","Департ.энергетики","газета Документ-Регион"]
[{"$nulls":4},"3.2","2,5-7 кг/см2","через тепловую сеть",{"v":0,"d":"0.00"},null,null,{"v":0,"d":"0.00"},null,null,{"v":0,"d":"0.00"},null,null,{"v":0,"d":"0.00"}]
[{"$nulls":6},"отпуск с коллекторов",{"v":0,"d":"0.00"},null,null,{"v":0,"d":"0.00"},null,null,{"v":0,"d":"0.00"},null,null,{"v":0,"d":"0.00"}]
[{"$nulls":4},"3.3","7-13 кг/см2","через тепловую сеть",{"v":0,"d":"0.00"},null,null,{"v":0,"d":"0.00"},null,null,{"v":0,"d":"0.00"},null,null,{"v":0,"d":"0.00"}]
[{"$nulls":6},"отпуск с коллекторов",{"v":0,"d":"0.00"},null,null,{"v":0,"d":"0.00"},null,null,{"v":0,"d":"0.00"},null,null,{"v":0,"d":"0.00"}]
[{"$nulls":4},"3.4","> 13 кг/см2","через тепловую сеть",{"v":0,"d":"0.00"},null,null,{"v":0,"d":"0.00"},null,null,{"v":0,"d":"0.00"},null,null,{"v":0,"d":"0.00"}]
[{"$nulls":6},"отпуск с коллекторов",{"v":0,"d":"0.00"},null,null,{"v":0,"d":"0.00"},null,null,{"v":0,"d":"0.00"},null,null,{"v":0,"d":"0.00"}]
[{"$nulls":3},"Удалить запись","3.5","1,2-2,5 кг/см2","через тепловую сеть",{"v":0,"d":"0.00"},null,null,{"$f":"$H38","v":{"v":0,"d":"0.00"}},null,null,{"$f":"$H38","v":{"v":0,"d":"0.00"}},null,null,{"$f":"$H38","v":{"v":0,"d":"0.00"}}]
[{"$nulls":6},"отпуск с коллекторов",{"v":1406.9,"d":"1406.90"},null,null,{"v":0,"d":"0.00"},null,null,{"v":0,"d":"0.00"},null,null,{"$f":"$H39","v":{"v":1406.9,"d":"1406.90"}},null,null,"01.07.2013","31.12.2013","14.11.2012","131","Департ.энергетики","газета Документ-Регион"]
[{"$nulls":5},"Добавить запись"]
[{"$nulls":4},"4.1","Острый редуцированный пар","через тепловую сеть",{"v":0,"d":"0.00"},null,null,{"$f":"$H41","v":{"v":0,"d":"0.00"}},null,null,{"$f":"$H41","v":{"v":0,"d":"0.00"}},null,null,{"$f":"$H41","v":{"v":0,"d":"0.00"}}]
[{"$nulls":6},"отпуск с коллекторов",{"v":0,"d":"0.00"},null,null,{"$f":"$H42","v":{"v":0,"d":"0.00"}},null,null,{"$f":"$H42","v":{"v":0,"d":"0.00"}},null,null,{"$f":"$H42","v":{"v":0,"d":"0.00"}}]
[{"$nulls":5},"Добавить запись"]
[{"$nulls":4},"4"]
[]
[{"$nulls":5},"Добавить вид теплоносителя"]
[]
[]
[{"$nulls":4},"*","Раскрывается не позднее 30 дней со дня принятия соответствующего решения об установлении тарифа (надбавки) на очередной период регулирования "]

{"sheet":"ТС цены (2)","index":6,"n_rows":34,"n_cols":18,"rows_kept":34,"merged":[[11,2,11,15],[12,2,12,15],[15,5,15,6],[16,5,16,6],[17,4,18,4],[17,5,18,5],[19,4,21,4],[19,5,21,5],[22,4,23,4],[22,5,23,5],[24,4,25,4],[24,5,25,5],[26,4,27,4],[26,5,27,5],[28,4,29,4],[28,5,29,5]]}
{"$rows_empty":9}
[null,null,{"$f":"codeTemplate","v":"Код шаблона: JKH.OPEN.INFO.PRICE.WARM"}]
[]
[null,null,"Информация о ценах (тарифах) на регулируемые товары и услуги и надбавках к этим ценам (тарифам)*"]
[null,null,{"$f":"IF(org=\"\",\"\",IF(fil=\"\",org,org & \" (\" & fil & \")\")) & IF(OR(godStart=\"\",godEnd=\"\"),\"\",\", \"&YEAR(godStart)& \"-\" & YEAR(godEnd)&\" гг.\")","v":"ОАО \"Яргортеплоэнерго\", 2013-2013 гг."}]
[]
[]
[{"$nulls":4},"№ п/п","Наименование показателя",null,"Единица измерения","Значение","Дата ввода","Срок действия","Постановление (дата)","Постановление (номер)","Наименование регулирующего органа, принявшего решение об утверждении цен","Источник официального опубликования органом, принявшим решение об утверждении цены (тарифа, надбавки)"]
[{"$nulls":4},1,2,null,3,4,5,6,"7.1","7.2",8,9]
[{"$nulls":4},"1","Утвержденная надбавка к тарифам регулируемых организаций на тепловую энергию","для бюджетных потребителей","руб./Гкал",{"v":0,"d":"0.00"},{"$nulls":8},{"$f":"IF(I18=\"\",0,1)","v":1}]
[{"$nulls":6},"для прочих потребителей","руб./Гкал",{"v":0,"d":"0.00"},{"$nulls":8},{"$f":"IF(I19=\"\",0,1)","v":1}]
[{"$nulls":4},"2","Утвержденная надбавка к ценам (тарифам) на тепловую энергию для потребителей","для населения","руб./Гкал",{"v":0,"d":"0.00"}]
[{"$nulls":6},"для бюджетных потребителей","руб./Гкал",{"v":0,"d":"0.00"}]
[{"$nulls":6},"для прочих потребителей","руб./Гкал",{"v":0,"d":"0.00"}]
[{"$nulls":4},"3","Утвержденная надбавка к тарифам регулируемых организаций на передачу тепловой энергии","для бюджетных потребителей","руб./Гкал",{"v":0,"d":"0.00"}]
[{"$nulls":6},"для прочих потребителей","руб./Гкал",{"v":0,"d":"0.00"}]
[{"$nulls":4},"4","Утвержденный тариф на подключение создаваемых (реконструируемых) объектов недвижимости к системе теплоснабжения","для бюджетных потребителей","руб./Гкал час",{"v":0,"d":"0.00"}]
[{"$nulls":6},"для прочих потребителей","руб./Гкал час",{"v":4621600,"d":"4621600.00"},"01.12.2010","31.12.2013","26.10.2010","4184","мэрия г.Ярославля","газета городские новости"]
[{"$nulls":4},"5","Утвержденный тариф регулируемых организаций на подключение к системе теплоснабжения","для бюджетных потребителей","руб./Гкал час",{"v":0,"d":"0.00"}]
[{"$nulls":6},"для прочих потребителей","руб./Гкал час",{"v":0,"d":"0.00"}]
[{"$nulls":4},"6","Утвержденный тариф на передачу тепловой энергии (мощности)","для бюджетных потребителей",{"$f":"IF(unit=\"\",\"x\",unit)","v":"руб./Гкал"},{"v":0,"d":"0.00"}]
[{"$nulls":6},"для прочих потребителей",{"$f":"IF(unit=\"\",\"x\",unit)","v":"руб./Гкал"},{"v":0,"d":"0.00"}]
[{"$nulls":5},"Добавить запись"]
[]
[]
[{"$nulls":4},"*","Раскрывается не позднее 30 дней со дня принятия соответствующего решения об установлении тарифа (надбавки) на очередной период регулирования "]

{"sheet":"Ссылки на публикации","index":7,"n_rows":28,"n_cols":11,"rows_kept":28,"merged":[[11,2,11,11],[12,2,12,11],[15,4,15,10],[26,5,26,10]]}
{"$rows_empty":9}
[null,null,{"$f":"codeTemplate","v":"Код шаблона: JKH.OPEN.INFO.PRICE.WARM"}]
[]
[null,null,"Ссылки на публикации в других источниках"]
[null,null,{"$f":"IF(org=\"\",\"\",IF(fil=\"\",org,org & \" (\" & fil & \")\")) & IF(OR(godStart=\"\",godEnd=\"\"),\"\",\", \"&YEAR(godStart)& \"-\" & YEAR(godEnd)&\" гг.\")","v":"ОАО \"Яргортеплоэнерго\", 2013-2013 гг."}]
[]
[]
[{"$nulls":4},"Указание на официальное печатное издание и (или) адрес сайта в сети Интернет, которые используются для размещения раскрываемой информации *"]
[]
[{"$nulls":4},"№ п/п","Содержание пункта","Наименование источника","Дата размещения информации","Номер печатного издания","Дата печатного издания","Адрес сайта в сети Интернет"]
[{"$nulls":4},1,{"$f":"E19+1","v":2},"3",4,5,6,7]
[{"$nulls":4},1,"Информация о ценах на регулируемые товары и услуги и надбавках к этим ценам **"]
[{"$nulls":4},"1.1","Сайт в сети Интернет","www.ygte.ru","25.12.2012","x","x","www.ygte.ru"]
[{"$nulls":4},"1.2","Печатное издание","газета Городские новости","22.12.2012","№103 (1534)","22,12,2012","x"]
[{"$nulls":3},"Удалить запись","1.3","Печатное издание","газета Городские новости","08.07.2013","№54(1593)","06.07.2012","www.ygte.ru"]
[{"$nulls":3},"end",null,"Добавить запись"]
[]
[]
[{"$nulls":4},"*","Источники публикации сообщаются в течение 5 рабочих дней со дня размещения информации на сайте в сети Интернет. Информация раскрывается не позднее 30 дней со дня принятия соответствующего решения об установлении тарифа(надбавки) на очередной период регулирования."]
[{"$nulls":4},"**","Информация подлежит публикованию в официальных печатных изданиях (со ссылкой на адрес сайта в сети Интернет)"]

{"sheet":"Комментарии","index":8,"n_rows":13,"n_cols":4,"rows_kept":13,"merged":[[11,3,11,5],[12,3,12,5]]}
{"$rows_empty":9}
[{"$nulls":3},{"$f":"codeTemplate","v":"Код шаблона: JKH.OPEN.INFO.PRICE.WARM"}]
[]
[{"$nulls":3},"КОММЕНТАРИИ"]
[{"$nulls":3},{"$f":"IF(org=\"\",\"\",IF(fil=\"\",org,org & \" (\" & fil & \")\")) & IF(OR(godStart=\"\",godEnd=\"\"),\"\",\", \"&YEAR(godStart)& \"-\" & YEAR(godEnd)&\" гг.\")","v":"ОАО \"Яргортеплоэнерго\", 2013-2013 гг."}]

{"sheet":"Проверка","index":9,"n_rows":157,"n_cols":7,"rows_kept":157,"merged":[[9,4,9,6]]}
{"$rows_empty":7}
[{"$nulls":4},{"$f":"codeTemplate","v":"Код шаблона: JKH.OPEN.INFO.PRICE.WARM"}]
[]
[{"$nulls":4},"Результат проверки"]
[]
[{"$nulls":4},"Ссылка","Причина","Статус ошибки"]
[{"$nulls":4},"1","2","3"]
[{"$nulls":4},"ТС цены!T28","Не указано значение на листе 'ТС цены'!","Предупреждение"]
[{"$nulls":4},"ТС цены!U28","Не указано значение на листе 'ТС цены'!","Предупреждение"]
[{"$nulls":4},"ТС цены!V28","Не указано значение на листе 'ТС цены'!","Предупреждение"]
[{"$nulls":4},"ТС цены!W28","Не указано значение на листе 'ТС цены'!","Предупреждение"]
[{"$nulls":4},"ТС цены!X28","Не указано значение на листе 'ТС цены'!","Предупреждение"]
[{"$nulls":4},"ТС цены!Y28","Не указано значение на листе 'ТС цены'!","Предупреждение"]
[{"$nulls":4},"ТС цены!T29","Не указано значение на листе 'ТС цены'!","Предупреждение"]
[{"$nulls":4},"ТС цены!U29","Не указано значение на листе 'ТС цены'!","Предупреждение"]
[{"$nulls":4},"ТС цены!V29","Не указано значение на листе 'ТС цены'!","Предупреждение"]
[{"$nulls":4},"ТС цены!W29","Не указано значение на листе 'ТС цены'!","Предупреждение"]
[{"$nulls":4},"ТС цены!X29","Не указано значение на листе 'ТС цены'!","Предупреждение"]
[{"$nulls":4},"ТС цены!Y29","Не указано значение на листе 'ТС цены'!","Предупреждение"]
[{"$nulls":4},"ТС цены!T30","Не указано значение на листе 'ТС цены'!","Предупреждение"]
[{"$nulls":4},"ТС цены!U30","Не указано значение на листе 'ТС цены'!","Предупреждение"]
[{"$nulls":4},"ТС цены!V30","Не указано значение на листе 'ТС цены'!","Предупреждение"]
[{"$nulls":4},"ТС цены!W30","Не указано значение на листе 'ТС цены'!","Предупреждение"]
[{"$nulls":4},"ТС цены!X30","Не указано значение на листе 'ТС цены'!","Предупреждение"]
[{"$nulls":4},"ТС цены!Y30","Не указано значение на листе 'ТС цены'!","Предупреждение"]
[{"$nulls":4},"ТС цены!T32","Не указано значение на листе 'ТС цены'!","Предупреждение"]
[{"$nulls":4},"ТС цены!U32","Не указано значение на листе 'ТС цены'!","Предупреждение"]
[{"$nulls":4},"ТС цены!V32","Не указано значение на листе 'ТС цены'!","Предупреждение"]
[{"$nulls":4},"ТС цены!W32","Не указано значение на листе 'ТС цены'!","Предупреждение"]
[{"$nulls":4},"ТС цены!X32","Не указано значение на листе 'ТС цены'!","Предупреждение"]
[{"$nulls":4},"ТС цены!Y32","Не указано значение на листе 'ТС цены'!","Предупреждение"]
[{"$nulls":4},"ТС цены!T33","Не указано значение на листе 'ТС цены'!","Предупреждение"]
[{"$nulls":4},"ТС цены!U33","Не указано значение на листе 'ТС цены'!","Предупреждение"]
[{"$nulls":4},"ТС цены!V33","Не указано значение на листе 'ТС цены'!","Предупреждение"]
[{"$nulls":4},"ТС цены!W33","Не указано значение на листе 'ТС цены'!","Предупреждение"]
[{"$nulls":4},"ТС цены!X33","Не указано значение на листе 'ТС цены'!","Предупреждение"]
[{"$nulls":4},"ТС цены!Y33","Не указано значение на листе 'ТС цены'!","Предупреждение"]
[{"$nulls":4},"ТС цены!T34","Не указано значение на листе 'ТС цены'!","Предупреждение"]
[{"$nulls":4},"ТС цены!U34","Не указано значение на листе 'ТС цены'!","Предупреждение"]
[{"$nulls":4},"ТС цены!V34","Не указано значение на листе 'ТС цены'!","Предупреждение"]
[{"$nulls":4},"ТС цены!W34","Не указано значение на листе 'ТС цены'!","Предупреждение"]
[{"$nulls":4},"ТС цены!X34","Не указано значение на листе 'ТС цены'!","Предупреждение"]
[{"$nulls":4},"ТС цены!Y34","Не указано значение на листе 'ТС цены'!","Предупреждение"]
[{"$nulls":4},"ТС цены!T35","Не указано значение на листе 'ТС цены'!","Предупреждение"]
[{"$nulls":4},"ТС цены!U35","Не указано значение на листе 'ТС цены'!","Предупреждение"]
[{"$nulls":4},"ТС цены!V35","Не указано значение на листе 'ТС цены'!","Предупреждение"]
[{"$nulls":4},"ТС цены!W35","Не указано значение на листе 'ТС цены'!","Предупреждение"]
[{"$nulls":4},"ТС цены!X35","Не указано значение на листе 'ТС цены'!","Предупреждение"]
[{"$nulls":4},"ТС цены!Y35","Не указано значение на листе 'ТС цены'!","Предупреждение"]
[{"$nulls":4},"ТС цены!T36","Не указано значение на листе 'ТС цены'!","Предупреждение"]
[{"$nulls":4},"ТС цены!U36","Не указано значение на листе 'ТС цены'!","Предупреждение"]
[{"$nulls":4},"ТС цены!V36","Не указано значение на листе 'ТС цены'!","Предупреждение"]
[{"$nulls":4},"ТС цены!W36","Не указано значение на листе 'ТС цены'!","Предупреждение"]
[{"$nulls":4},"ТС цены!X36","Не указано значение на листе 'ТС цены'!","Предупреждение"]
[{"$nulls":4},"ТС цены!Y36","Не указано значение на листе 'ТС цены'!","Предупреждение"]
[{"$nulls":4},"ТС цены!T37","Не указано значение на листе 'ТС цены'!","Предупреждение"]
[{"$nulls":4},"ТС цены!U37","Не указано значение на листе 'ТС цены'!","Предупреждение"]
[{"$nulls":4},"ТС цены!V37","Не указано значение на листе 'ТС цены'!","Предупреждение"]
[{"$nulls":4},"ТС цены!W37","Не указано значение на листе 'ТС цены'!","Предупреждение"]
[{"$nulls":4},"ТС цены!X37","Не указано значение на листе 'ТС цены'!","Предупреждение"]
[{"$nulls":4},"ТС цены!Y37","Не указано значение на листе 'ТС цены'!","Предупреждение"]
[{"$nulls":4},"ТС цены!T38","Не указано значение на листе 'ТС цены'!","Предупреждение"]
[{"$nulls":4},"ТС цены!U38","Не указано значение на листе 'ТС цены'!","Предупреждение"]
[{"$nulls":4},"ТС цены!V38","Не указано значение на листе 'ТС цены'!","Предупреждение"]
[{"$nulls":4},"ТС цены!W38","Не указано значение на листе 'ТС цены'!","Предупреждение"]
[{"$nulls":4},"ТС цены!X38","Не указано значение на листе 'ТС цены'!","Предупреждение"]
[{"$nulls":4},"ТС цены!Y38","Не указано значение на листе 'ТС цены'!","Предупреждение"]
[{"$nulls":4},"ТС цены!T41","Не указано значение на листе 'ТС цены'!","Предупреждение"]
[{"$nulls":4},"ТС цены!U41","Не указано значение на листе 'ТС цены'!","Предупреждение"]
[{"$nulls":4},"ТС цены!V41","Не указано значение на листе 'ТС цены'!","Предупреждение"]
[{"$nulls":4},"ТС цены!W41","Не указано значение на листе 'ТС цены'!","Предупреждение"]
[{"$nulls":4},"ТС цены!X41","Не указано значение на листе 'ТС цены'!","Предупреждение"]
[{"$nulls":4},"ТС цены!Y41","Не указано значение на листе 'ТС цены'!","Предупреждение"]
[{"$nulls":4},"ТС цены!T42","Не указано значение на листе 'ТС цены'!","Предупреждение"]
[{"$nulls":4},"ТС цены!U42","Не указано значение на листе 'ТС цены'!","Предупреждение"]
[{"$nulls":4},"ТС цены!V42","Не указано значение на листе 'ТС цены'!","Предупреждение"]
[{"$nulls":4},"ТС цены!W42","Не указано значение на листе 'ТС цены'!","Предупреждение"]
[{"$nulls":4},"ТС цены!X42","Не указано значение на листе 'ТС цены'!","Предупреждение"]
[{"$nulls":4},"ТС цены!Y42","Не указано значение на листе 'ТС цены'!","Предупреждение"]
[{"$nulls":4},"ТС цены (2)!J18","Не указано значение на листе 'ТС цены (2)'!","Предупреждение"]
[{"$nulls":4},"ТС цены (2)!K18","Не указано значение на листе 'ТС цены (2)'!","Предупреждение"]
[{"$nulls":4},"ТС цены (2)!L18","Не указано значение на листе 'ТС цены (2)'!","Предупреждение"]
[{"$nulls":4},"ТС цены (2)!M18","Не указано значение на листе 'ТС цены (2)'!","Предупреждение"]
[{"$nulls":4},"ТС цены (2)!N18","Не указано значение на листе 'ТС цены (2)'!","Предупреждение"]
[{"$nulls":4},"ТС цены (2)!O18","Не указано значение на листе 'ТС цены (2)'!","Предупреждение"]
[{"$nulls":4},"ТС цены (2)!J19","Не указано значение на листе 'ТС цены (2)'!","Предупреждение"]
[{"$nulls":4},"ТС цены (2)!K19","Не указано значение на листе 'ТС цены (2)'!","Предупреждение"]
[{"$nulls":4},"ТС цены (2)!L19","Не указано значение на листе 'ТС цены (2)'!","Предупреждение"]
[{"$nulls":4},"ТС цены (2)!M19","Не указано значение на листе 'ТС цены (2)'!","Предупреждение"]
[{"$nulls":4},"ТС цены (2)!N19","Не указано значение на листе 'ТС цены (2)'!","Предупреждение"]
[{"$nulls":4},"ТС цены (2)!O19","Не указано значение на листе 'ТС цены (2)'!","Предупреждение"]
[{"$nulls":4},"ТС цены (2)!J20","Не указано значение на листе 'ТС цены (2)'!","Предупреждение"]
[{"$nulls":4},"ТС цены (2)!K20","Не указано значение на листе 'ТС цены (2)'!","Предупреждение"]
[{"$nulls":4},"ТС цены (2)!L20","Не указано значение на листе 'ТС цены (2)'!","Предупреждение"]
[{"$nulls":4},"ТС цены (2)!M20","Не указано значение на листе 'ТС цены (2)'!","Предупреждение"]
[{"$nulls":4},"ТС цены (2)!N20","Не указано значение на листе 'ТС цены (2)'!","Предупреждение"]
[{"$nulls":4},"ТС цены (2)!O20","Не указано значение на листе 'ТС цены (2)'!","Предупреждение"]
[{"$nulls":4},"ТС цены (2)!J21","Не указано значение на листе 'ТС цены (2)'!","Предупреждение"]
[{"$nulls":4},"ТС цены (2)!K21","Не указано значение на листе 'ТС цены (2)'!","Предупреждение"]
[{"$nulls":4},"ТС цены (2)!L21","Не указано значение на листе 'ТС цены (2)'!","Предупреждение"]
[{"$nulls":4},"ТС цены (2)!M21","Не указано значение на листе 'ТС цены (2)'!","Предупреждение"]
[{"$nulls":4},"ТС цены (2)!N21","Не указано значение на листе 'ТС цены (2)'!","Предупреждение"]
[{"$nulls":4},"ТС цены (2)!O21","Не указано значение на листе 'ТС цены (2)'!","Предупреждение"]
[{"$nulls":4},"ТС цены (2)!J22","Не указано значение на листе 'ТС цены (2)'!","Предупреждение"]
[{"$nulls":4},"ТС цены (2)!K22","Не указано значение на листе 'ТС цены (2)'!","Предупреждение"]
[{"$nulls":4},"ТС цены (2)!L22","Не указано значение на листе 'ТС цены (2)'!","Предупреждение"]
[{"$nulls":4},"ТС цены (2)!M22","Не указано значение на листе 'ТС цены (2)'!","Предупреждение"]
[{"$nulls":4},"ТС цены (2)!N22","Не указано значение на листе 'ТС цены (2)'!","Предупреждение"]
[{"$nulls":4},"ТС цены (2)!O22","Не указано значение на листе 'ТС цены (2)'!","Предупреждение"]
[{"$nulls":4},"ТС цены (2)!J23","Не указано значение на листе 'ТС цены (2)'!","Предупреждение"]
[{"$nulls":4},"ТС цены (2)!K23","Не указано значение на листе 'ТС цены (2)'!","Предупреждение"]
[{"$nulls":4},"ТС цены (2)!L23","Не указано значение на листе 'ТС цены (2)'!","Предупреждение"]
[{"$nulls":4},"ТС цены (2)!M23","Не указано значение на листе 'ТС цены (2)'!","Предупреждение"]
[{"$nulls":4},"ТС цены (2)!N23","Не указано значение на листе 'ТС цены (2)'!","Предупреждение"]
[{"$nulls":4},"ТС цены (2)!O23","Не указано значение на листе 'ТС цены (2)'!","Предупреждение"]
[{"$nulls":4},"ТС цены (2)!J24","Не указано значение на листе 'ТС цены (2)'!","Предупреждение"]
[{"$nulls":4},"ТС цены (2)!K24","Не указано значение на листе 'ТС цены (2)'!","Предупреждение"]
[{"$nulls":4},"ТС цены (2)!L24","Не указано значение на листе 'ТС цены (2)'!","Предупреждение"]
[{"$nulls":4},"ТС цены (2)!M24","Не указано значение на листе 'ТС цены (2)'!","Предупреждение"]
[{"$nulls":4},"ТС цены (2)!N24","Не указано значение на листе 'ТС цены (2)'!","Предупреждение"]
[{"$nulls":4},"ТС цены (2)!O24","Не указано значение на листе 'ТС цены (2)'!","Предупреждение"]
[{"$nulls":4},"ТС цены (2)!J25","Не указано значение на листе 'ТС цены (2)'!","Предупреждение"]
[{"$nulls":4},"ТС цены (2)!K25","Не указано значение на листе 'ТС цены (2)'!","Предупреждение"]
[{"$nulls":4},"ТС цены (2)!L25","Не указано значение на листе 'ТС цены (2)'!","Предупреждение"]
[{"$nulls":4},"ТС цены (2)!M25","Не указано значение на листе 'ТС цены (2)'!","Предупреждение"]
[{"$nulls":4},"ТС цены (2)!N25","Не указано значение на листе 'ТС цены (2)'!","Предупреждение"]
[{"$nulls":4},"ТС цены (2)!O25","Не указано значение на листе 'ТС цены (2)'!","Предупреждение"]
[{"$nulls":4},"ТС цены (2)!J27","Не указано значение на листе 'ТС цены (2)'!","Предупреждение"]
[{"$nulls":4},"ТС цены (2)!K27","Не указано значение на листе 'ТС цены (2)'!","Предупреждение"]
[{"$nulls":4},"ТС цены (2)!L27","Не указано значение на листе 'ТС цены (2)'!","Предупреждение"]
[{"$nulls":4},"ТС цены (2)!M27","Не указано значение на листе 'ТС цены (2)'!","Предупреждение"]
[{"$nulls":4},"ТС цены (2)!N27","Не указано значение на листе 'ТС цены (2)'!","Предупреждение"]
[{"$nulls":4},"ТС цены (2)!O27","Не указано значение на листе 'ТС цены (2)'!","Предупреждение"]
[{"$nulls":4},"ТС цены (2)!J28","Не указано значение на листе 'ТС цены (2)'!","Предупреждение"]
[{"$nulls":4},"ТС цены (2)!K28","Не указано значение на листе 'ТС цены (2)'!","Предупреждение"]
[{"$nulls":4},"ТС цены (2)!L28","Не указано значение на листе 'ТС цены (2)'!","Предупреждение"]
[{"$nulls":4},"ТС цены (2)!M28","Не указано значение на листе 'ТС цены (2)'!","Предупреждение"]
[{"$nulls":4},"ТС цены (2)!N28","Не указано значение на листе 'ТС цены (2)'!","Предупреждение"]
[{"$nulls":4},"ТС цены (2)!O28","Не указано значение на листе 'ТС цены (2)'!","Предупреждение"]
[{"$nulls":4},"ТС цены (2)!J29","Не указано значение на листе 'ТС цены (2)'!","Предупреждение"]
[{"$nulls":4},"ТС цены (2)!K29","Не указано значение на листе 'ТС цены (2)'!","Предупреждение"]
[{"$nulls":4},"ТС цены (2)!L29","Не указано значение на листе 'ТС цены (2)'!","Предупреждение"]
[{"$nulls":4},"ТС цены (2)!M29","Не указано значение на листе 'ТС цены (2)'!","Предупреждение"]
[{"$nulls":4},"ТС цены (2)!N29","Не указано значение на листе 'ТС цены (2)'!","Предупреждение"]
[{"$nulls":4},"ТС цены (2)!O29","Не указано значение на листе 'ТС цены (2)'!","Предупреждение"]
[{"$nulls":4},"ТС цены (2)!J30","Не указано значение на листе 'ТС цены (2)'!","Предупреждение"]
[{"$nulls":4},"ТС цены (2)!K30","Не указано значение на листе 'ТС цены (2)'!","Предупреждение"]
[{"$nulls":4},"ТС цены (2)!L30","Не указано значение на листе 'ТС цены (2)'!","Предупреждение"]
[{"$nulls":4},"ТС цены (2)!M30","Не указано значение на листе 'ТС цены (2)'!","Предупреждение"]
[{"$nulls":4},"ТС цены (2)!N30","Не указано значение на листе 'ТС цены (2)'!","Предупреждение"]
[{"$nulls":4},"ТС цены (2)!O30","Не указано значение на листе 'ТС цены (2)'!","Предупреждение"]

{"sheet":"AllSheetsInThisWorkbook","index":10,"n_rows":27,"n_cols":2,"rows_kept":27,"hidden":true}
["Расчетные листы","Скрытые листы"]
["sheetMain00","AllSheetsInThisWorkbook"]
["SHEET_UPDATE_INSTRUCTION","TEHSH_et_union"]
["modUpdTemplLogger","TEHSH_tehsheet"]
["modRegionSelect","TEHSH_reestr_org"]
["sheetMain01","TEHSH_reestr_filter"]
["sheetMain02","TEHSH_reestr_mo"]
["sheetMain03","modHyperlink"]
["sheetMain04","modChange"]
["sheetMain05","modfrmReestr"]
[null,"modPROV"]
[null,"modTitleSheetHeaders"]
[null,"modServiceModule"]
[null,"modClassifierValidate"]
[null,"modWindowClipboard"]
[null,"modInfo"]
[null,"modfrmDateChoose"]
[null,"modReestrMO"]
[null,"modDblClick"]
[null,"modUpdTemplMain"]
[null,"modSheetMain01"]
[null,"modSheetMain02"]
[null,"modSheetMain03"]
[null,"modSheetMain04"]
[null,"modSheetMain05"]
[null,"modRegionSelectSub"]
[null,"sheetOld00"]

{"sheet":"et_union","index":11,"n_rows":22,"n_cols":17,"rows_kept":22,"hidden":true,"merged":[[4,4,5,4],[13,4,14,4],[13,5,14,5],[18,4,19,4],[18,5,19,5]]}
[]
["add_MR_range"]
["add_MO_range"]
[]
[]
[{"$nulls":5},"Добавить МО"]
[]
["add_PRICE_range"]
[]
[{"$nulls":10},{"$f":"$H10","v":{"v":0,"d":"0.00"}},null,null,{"$f":"$H10","v":{"v":0,"d":"0.00"}},null,null,{"$f":"$H10","v":{"v":0,"d":"0.00"}}]
[]
["add_PRICE_range_2"]
[]
[{"$nulls":6},"через тепловую сеть",{"$nulls":3},{"$f":"$H14","v":{"v":0,"d":"0.00"}},null,null,{"$f":"$H14","v":{"v":0,"d":"0.00"}},null,null,{"$f":"$H14","v":{"v":0,"d":"0.00"}}]
[{"$nulls":6},"отпуск с коллекторов",{"$nulls":3},{"$f":"$H15","v":{"v":0,"d":"0.00"}},null,null,{"$f":"$H15","v":{"v":0,"d":"0.00"}},null,null,{"$f":"$H15","v":{"v":0,"d":"0.00"}}]
[]
["add_PRICE_2_range"]
[]
[]
[]
[]
["add_HYPERLINK_range"]

{"sheet":"TEHSHEET","index":12,"n_rows":85,"n_cols":94,"rows_kept":85,"hidden":true,"merged":[[0,10,0,13],[0,15,0,16],[0,26,0,27]]}
["Логика","Года","Единица измерения","Месяц-число","Месяц-текст","Месяц-текст /род.падеж/","День-число","Регионы","НДС /kind_of_NDS/","метод установления тарифа /kind_of_the_method_of_tariff_setting/","Листы",{"$nulls":4},"Диапазоны",null,null,"публикация /kind_of_publication/",{"$nulls":7},"Диапазоны",null,null,"Вид деятельности, на которую установлен тариф /kind_of_activity/","Вид товара /kind_of_goods/","Вид тарифа на передачу тепловой энергии /kind_of_tariff_unit/",{"$nulls":61},"5.86"]
["да",2006,"тыс.руб.","01","январь","января","01","Алтайский край","отчетность представлена без НДС",null,"sheet_costs_1","sheet_costs_2","sheet_costs_3","sheet_active",null,"method_returns_title","method_returns_pub",null,null,"sheet_costs_1","sheet_costs_2","sheet_costs_3","sheet_active","sheet_publication","sheet_comments",null,"name_source_str","name_source_act",null,"Комбинированная выработка","Техническая вода","руб./Гкал/ч/мес"]
["нет",2007,"млн.руб.","02","февраль","февраля","02","Амурская область","отчетность представлена с учетом освобождения от НДС","метод экономически обоснованных расходов",-1,2,2,2,null,"True","True",null,"на официальном сайте организации",2,2,2,2,-1,-1,null,34,34,null,"Некомбинированная выработка","Питьевая вода","руб./Гкал"]
[null,2008,null,"03","март","марта","03","Архангельская область","отчетность представлена с НДС","метод индексации на основе долгосрочных параметров",2,-1,2,2,null,"True","True",null,"на сайте регулирующего органа",-1,-1,-1,-1,-1,-1,null,36,36,null,"Нет производства т/э","Техническая вода и питьевая вода"]
[null,2009,null,"04","апрель","апреля","04","Астраханская область",null,"метод доходности инвестированного капитала",2,2,-1,-1,null,"False","False",null,"empty",2,2,2,2,2,2,null,36,36,null,"Смешанное производство","Подвозная вода"]
[null,2010,null,"05","май","мая","05","Белгородская область",null,"empty",2,2,2,2,null,"True","True",{"$nulls":13},"Другое"]
[null,2011,null,"06","июнь","июня","06","Брянская область"]
[null,2012,null,"07","июль","июля","07","Владимирская область"]
[null,2013,null,"08","август","августа","08","Волгоградская область"]
[null,2014,null,"09","сентябрь","сентября","09","Вологодская область"]
[null,2015,null,10,"октябрь","октября",10,"Воронежская область"]
[null,2016,null,11,"ноябрь","ноября",11,"г.Байконур"]
[null,2017,null,12,"декабрь","декабря",12,"г. Москва"]
[null,2018,{"$nulls":4},13,"г.Санкт-Петербург"]
[null,2019,{"$nulls":4},14,"Еврейская автономная область"]
[null,2020,{"$nulls":4},15,"Забайкальский край"]
["XML_ORG_LIST_TAG_NAMES",{"$nulls":5},16,"Ивановская область"]
["NSRF",{"$nulls":5},17,"Иркутская область"]
["MR_NAME",{"$nulls":5},18,"Кабардино-Балкарская республика"]
["OKTMO_MR_NAME",{"$nulls":5},19,"Калининградская область"]
["MO_NAME",{"$nulls":5},20,"Калужская область"]
["OKTMO_NAME",{"$nulls":5},21,"Камчатский край"]
["ORG_NAME",{"$nulls":5},22,"Карачаево-Черкесская республика"]
["INN_NAME",{"$nulls":5},23,"Кемеровская область"]
["KPP_NAME",{"$nulls":5},24,"Кировская область"]
["VDET_NAME",{"$nulls":5},25,"Костромская область"]
[{"$nulls":6},26,"Краснодарский край"]
["XML_MR_MO_OKTMO_LIST_TAG_NAMES",{"$nulls":5},27,"Красноярский край"]
["NSRF",{"$nulls":5},28,"Курганская область"]
["MR_NAME",{"$nulls":5},29,"Курская область"]
["OKTMO_MR_NAME",{"$nulls":5},30,"Ленинградская область"]
["MO_NAME",{"$nulls":5},31,"Липецкая область"]
["OKTMO_NAME",{"$nulls":6},"Магаданская область"]
[{"$nulls":7},"Московская область"]
[{"$nulls":7},"Мурманская область"]
[{"$nulls":7},"Ненецкий автономный округ"]
[{"$nulls":7},"Нижегородская область"]
[{"$nulls":7},"Новгородская область"]
[{"$nulls":7},"Новосибирская область"]
[{"$nulls":7},"Омская область"]
[{"$nulls":7},"Оренбургская область"]
[{"$nulls":7},"Орловская область"]
[{"$nulls":7},"Пензенская область"]
[{"$nulls":7},"Пермский край"]
[{"$nulls":7},"Приморский край"]
[{"$nulls":7},"Псковская область"]
[{"$nulls":7},"Республика Адыгея"]
[{"$nulls":7},"Республика Алтай"]
[{"$nulls":7},"Республика Башкортостан"]
[{"$nulls":7},"Республика Бурятия"]
[{"$nulls":7},"Республика Дагестан"]
[{"$nulls":7},"Республика Ингушетия"]
[{"$nulls":7},"Республика Калмыкия"]
[{"$nulls":7},"Республика Карелия"]
[{"$nulls":7},"Республика Коми"]
[{"$nulls":7},"Республика Марий Эл"]
[{"$nulls":7},"Республика Мордовия"]
[{"$nulls":7},"Республика Саха (Якутия)"]
[{"$nulls":7},"Республика Северная Осетия-Алания"]
[{"$nulls":7},"Республика Татарстан"]
[{"$nulls":7},"Республика Тыва"]
[{"$nulls":7},"Республика Хакасия"]
[{"$nulls":7},"Ростовская область"]
[{"$nulls":7},"Рязанская область"]
[{"$nulls":7},"Самарская область"]
[{"$nulls":7},"Саратовская область"]
[{"$nulls":7},"Сахалинская область"]
[{"$nulls":7},"Свердловская область"]
[{"$nulls":7},"Смоленская область"]
[{"$nulls":7},"Ставропольский край"]
[{"$nulls":7},"Тамбовская область"]
[{"$nulls":7},"Тверская область"]
[{"$nulls":7},"Томская область"]
[{"$nulls":7},"Тульская область"]
[{"$nulls":7},"Тюменская область"]
[{"$nulls":7},"Удмуртская республика"]
[{"$nulls":7},"Ульяновская область"]
[{"$nulls":7},"Хабаровский край"]
[{"$nulls":7},"Ханты-Мансийский автономный округ"]
[{"$nulls":7},"Челябинская область"]
[{"$nulls":7},"Чеченская республика"]
[{"$nulls":7},"Чувашская республика"]
[{"$nulls":7},"Чукотский автономный округ"]
[{"$nulls":7},"Ямало-Ненецкий автономный округ"]
[{"$nulls":7},"Ярославская область"]

{"sheet":"REESTR_ORG","index":13,"n_rows":194,"n_cols":8,"rows_kept":194,"hidden":true}
["№","МР","МО","МО ОКТМО","ОРГАНИЗАЦИЯ","ИНН","КПП","ВИД ДЕЯТЕЛЬНОСТИ"]
[1,"Большесельский муниципальный район","Большесельский муниципальный район","78603000","ОАО \"Яркоммунсервис\"","7604016214","760401001","производство (некомбинированная выработка)+передача+сбыт"]
[2,"Большесельский муниципальный район","Большесельское сельское поселение","78603422","МУП \"Коммунальник\"","7613004085","761301001","производство (некомбинированная выработка)+передача+сбыт"]
[3,"Большесельский муниципальный район","Вареговское сельское поселение","78603427","ООО \"Котельная завода \"Пролетарская свобода\"","7604077129","760401001","производство (некомбинированная выработка)+передача+сбыт"]
[4,"Борисоглебский муниципальный район","Борисоглебский муниципальный район","78606000","МУП ЖКХ \"Акватерм-сервис\"","7614004641","761401001","производство (некомбинированная выработка)+передача+сбыт"]
[5,"Борисоглебский муниципальный район","Борисоглебский муниципальный район","78606000","ОАО \"Яркоммунсервис\"","7604016214","760401001","производство (некомбинированная выработка)+передача+сбыт"]
[6,"Борисоглебский муниципальный район","Вощажниковское сельское поселение","78606410","МУП ЖКХ \"Борисоглебское\"","7614004426","761401001","производство (некомбинированная выработка)+передача+сбыт"]
[7,"Брейтовский муниципальный район","Брейтовский муниципальный район","78609000","МУП ЖКХ \"Брейтовское\"","7615010408","761501001","производство (некомбинированная выработка)+передача+сбыт"]
[8,"Брейтовский муниципальный район","Брейтовский муниципальный район","78609000","ОАО \"Яркоммунсервис\"","7604016214","760401001","производство (некомбинированная выработка)+передача+сбыт"]
[9,"Гаврилов-Ямский муниципальный район","Гаврилов-Ямский муниципальный район","78612000","Великосельское МП ЖКХ","7616006563","761601001","производство (некомбинированная выработка)+передача+сбыт"]
[10,"Гаврилов-Ямский муниципальный район","Гаврилов-Ямский муниципальный район","78612000","ГУП санаторий-профилакторий \"Сосновый бор\"","7616001068","761601001","производство (некомбинированная выработка)+передача+сбыт"]
[11,"Гаврилов-Ямский муниципальный район","Гаврилов-Ямский муниципальный район","78612000","ОАО \"Гаврилов-Ямский машиностроительный завод \"Агат\"","7616002417","761601001","производство (некомбинированная выработка)+передача+сбыт"]
[12,"Гаврилов-Ямский муниципальный район","Гаврилов-Ямский муниципальный район","78612000","ОАО \"Яркоммунсервис\"","7604016214","760401001","производство (некомбинированная выработка)+передача+сбыт"]
[13,"Гаврилов-Ямский муниципальный район","Гаврилов-Ямский муниципальный район","78612000","Шопшинское МП ЖКХ","7616006316","761601001","производство (некомбинированная выработка)+передача+сбыт"]
[14,"Гаврилов-Ямский муниципальный район","Городское поселение г. Гаврилов-Ям","78612101","ОАО \"Ресурс\"","7616009483","761601001","производство (некомбинированная выработка)+передача+сбыт"]
[15,"Гаврилов-Ямский муниципальный район","Шопшинское сельское поселение","78612490","Ярославский филиал ОАО \"Ростелеком\"","7707049388","760443001","производство (некомбинированная выработка)+передача+сбыт"]
[16,"Городской округ г.Переславль-Залесский","г. Переславль-Залесский","78705000","ЗАО \"Новый мир\"","7608001240","760801001","производство (некомбинированная выработка)+передача+сбыт"]
[17,"Городской округ г.Переславль-Залесский","г. Переславль-Залесский","78705000","МУП \"Энергетик\"","7608010100","760801002","производство комбинированная выработка"]
[18,"Городской округ г.Переславль-Залесский","г. Переславль-Залесский","78705000","МУП \"Энергетик\"","7608010100","760801002","производство (некомбинированная выработка)+передача+сбыт"]
[19,"Городской округ г.Переславль-Залесский","г. Переславль-Залесский","78705000","ООО \"Муниципальные энергетические системы\"","7727575942","990801001","производство (некомбинированная выработка)+передача+сбыт"]
[20,"Городской округ г.Переславль-Залесский","г. Переславль-Залесский","78705000","ООО \"Переславский технопарк\"","7608012203","760801001","производство (некомбинированная выработка)+передача+сбыт"]
[21,"Городской округ г.Рыбинск","г.Рыбинск","78640101","МУП ГО г. Рыбинска \"Водоканал\"","7610012391","761001001","производство (некомбинированная выработка)+передача+сбыт"]
[22,"Городской округ г.Рыбинск","г.Рыбинск","78640101","МУП ГО г.Рыбинск \"Теплоэнерго\"","7610044403","761001001","производство (некомбинированная выработка)+передача+сбыт"]
[23,"Городской округ г.Рыбинск","г.Рыбинск","78640101","ОАО \"Воентелеком - 190 Центральный ремонтный завод средств связи\"","7718766718","761043001","производство (некомбинированная выработка)+передача+сбыт"]
[24,"Городской округ г.Рыбинск","г.Рыбинск","78640101","ОАО \"Газпромнефть - Ярославль\"","7604140860","761001001","производство (некомбинированная выработка)+передача+сбыт"]
[25,"Городской округ г.Рыбинск","г.Рыбинск","78640101","ОАО \"НПО \"Сатурн\"","7610052644","761001001","производство комбинированная выработка"]
[26,"Городской округ г.Рыбинск","г.Рыбинск","78640101","ОАО \"НПО \"Сатурн\"","7610052644","761001001","Передача+Сбыт"]
[27,"Городской округ г.Рыбинск","г.Рыбинск","78640101","ОАО \"Раскат\"","7610002851","761001001","производство (некомбинированная выработка)+передача+сбыт"]
[28,"Городской округ г.Рыбинск","г.Рыбинск","78640101","ОАО \"Рыбинский завод приборостроения\"","7610062970","761001001","производство (некомбинированная выработка)+передача+сбыт"]
[29,"Городской округ г.Рыбинск","г.Рыбинск","78640101","ОАО \"Рыбинсккорм\"","7610018435","761001001","производство комбинированная выработка"]
[30,"Городской округ г.Рыбинск","г.Рыбинск","78640101","ОАО \"Рыбинсккорм\"","7610018435","761001001","производство (некомбинированная выработка)+передача"]
[31,"Городской округ г.Рыбинск","г.Рыбинск","78640101","ОАО \"Рыбинскхлеб\"","7610005796","761001001","производство (некомбинированная выработка)+передача+сбыт"]
[32,"Городской округ г.Рыбинск","г.Рыбинск","78640101","ОАО \"Рыбинскхлебопродукт\"","7610002700","761001001","производство (некомбинированная выработка)+передача+сбыт"]
[33,"Городской округ г.Рыбинск","г.Рыбинск","78640101","ОАО \"Яркоммунсервис\"","7604016214","760401001","производство (некомбинированная выработка)+передача+сбыт"]
[34,"Городской округ г.Рыбинск","г.Рыбинск","78640101","ООО \"Крома\"","7610063251","761001001","производство (некомбинированная выработка)+передача+сбыт"]
[35,"Городской округ г.Рыбинск","г.Рыбинск","78640101","ООО \"Мясопродукт\"","7610041709","761001001","производство (некомбинированная выработка)+передача+сбыт"]
[36,"Городской округ г.Рыбинск","г.Рыбинск","78640101","ООО \"Раскат-РОС\"","7610059375","761001002","производство (некомбинированная выработка)+передача+сбыт"]
[37,"Городской округ г.Рыбинск","г.Рыбинск","78640101","ООО \"Управляющая компания \"Рыбинсккабель\"","7610092830","761001001","производство (некомбинированная выработка)"]
[38,"Городской округ г.Рыбинск","г.Рыбинск","78640101","ФГУ \"Следственный изолятор 2\" УФСИН по Ярославской области\"","7610028000","761001001","производство (некомбинированная выработка)+передача+сбыт"]
[39,"Городской округ г.Рыбинск","г.Рыбинск","78640101","Ярославский территориальный участок северной дирекции по тепловодоснабжению - структурного подразделения центральной дирекции по тепловодоснабжению -  филиала ОАО \"РЖД\"","7708503727","997650004","производство (некомбинированная выработка)+передача+сбыт"]
[40,"Городской округ г.Ярославль","Городской округ г.Ярославль","78701000","ОАО \"ТЭСС\"","7603015835","760301001","производство (некомбинированная выработка)+передача+сбыт"]
[41,"Городской округ г.Ярославль","Городской округ г.Ярославль","78701000","ОАО \"Ярославльводоканал\"","7606069518","760601001","производство (некомбинированная выработка)+передача+сбыт"]
[42,"Городской округ г.Ярославль","Городской округ г.Ярославль","78701000","ООО \"Котельная завода \"Пролетарская свобода\"","7604077129","760401001","производство (некомбинированная выработка)+передача+сбыт"]
[43,"Городской округ г.Ярославль","Городской округ г.Ярославль","78701000","ООО \"Тепловая энергетическая компания - 1\"","7604188573","760401001","производство (некомбинированная выработка)+передача+сбыт"]
[44,"Городской округ г.Ярославль","Городской округ г.Ярославль","78701000","Ярославский территориальный участок северной дирекции по тепловодоснабжению - структурного подразделения центральной дирекции по тепловодоснабжению -  филиала ОАО \"РЖД\"","7708503727","997650004","производство (некомбинированная выработка)+передача+сбыт"]
[45,"Городской округ г.Ярославль","Городской округ г.Ярославль","78701000","филиал ОАО РЭУ\" \"Владимирский\"","7714783092","332743001","производство (некомбинированная выработка)+передача+сбыт"]
[46,"Городской округ г.Ярославль","г. Ярославль","78701000","\"Ярославский электровозоремонтный завод\" им. Б.П. Бещева - филиал ОАО \"Желдорреммаш\"","7603015433","760443001","производство (некомбинированная выработка)+передача+сбыт"]
[47,"Городской округ г.Ярославль","г. Ярославль","78701000","ГУ ОАО \"ТГК-2\" по Ярославской области","7606053324","760631001","Передача+Сбыт"]
[48,"Городской округ г.Ярославль","г. Ярославль","78701000","ГУ ОАО \"ТГК-2\" по Ярославской области","7606053324","760631001","производство комбинированная выработка"]
[49,"Городской округ г.Ярославль","г. Ярославль","78701000","ЗАО \"Волгаэнергоресурс\"","7602053796","760101001","производство (некомбинированная выработка)+передача+сбыт"]
[50,"Городской округ г.Ярославль","г. Ярославль","78701000","ЗАО \"Железобетон\"","7601000262","760201001","Передача"]
[51,"Городской округ г.Ярославль","г. Ярославль","78701000","ЗАО \"Лакокраска-ресурс\"","7602059910","760201001","Передача"]
[52,"Городской округ г.Ярославль","г. Ярославль","78701000","ЗАО \"Норский керамический завод\"","7602013169","760201001","производство (некомбинированная выработка)+передача+сбыт"]
[53,"Городской округ г.Ярославль","г. Ярославль","78701000","ЗАО \"Хром\"","7601001724","760401001","производство (некомбинированная выработка)+передача+сбыт"]
[54,"Городской округ г.Ярославль","г. Ярославль","78701000","ЗАО \"Ярославль-Резинотехника\"","7603024491","760301001","производство (некомбинированная выработка)+передача+сбыт"]
[55,"Городской округ г.Ярославль","г. Ярославль","78701000","МУП \"Яргорэнергосбыт\"","7604088265","760301001","Передача"]
[56,"Городской округ г.Ярославль","г. Ярославль","78701000","НУЗ \"Дорожная больница станции Ярославль ОАО \"РЖД\"","7604068188","760401001","производство (некомбинированная выработка)+передача+сбыт"]
[57,"Городской округ г.Ярославль","г. Ярославль","78701000","ОАО \"Агромясо\"","7601001072","760701001","производство (некомбинированная выработка)+передача+сбыт"]
[58,"Городской округ г.Ярославль","г. Ярославль","78701000","ОАО \"Инкомпроект-Инвест\"","7604149662","760401001","производство (некомбинированная выработка)+передача+сбыт"]
[59,"Городской округ г.Ярославль","г. Ярославль","78701000","ОАО \"Компания \"Спектр\"","7609012894","760601001","производство (некомбинированная выработка)+передача+сбыт"]
[60,"Городской округ г.Ярославль","г. Ярославль","78701000","ОАО \"Опытный завод \"Паксистем\"","7602002946","760201001","производство (некомбинированная выработка)+передача+сбыт"]
[61,"Городской округ г.Ярославль","г. Ярославль","78701000","ОАО \"Русские краски\"","7605018045","760501001","производство (некомбинированная выработка)+передача+сбыт"]
[62,"Городской округ г.Ярославль","г. Ярославль","78701000","ОАО \"ТГК-2\"","7606053324","760601001","производство комбинированная выработка"]
[63,"Городской округ г.Ярославль","г. Ярославль","78701000","ОАО \"ТГК-2\"","7606053324","760601001","Передача+Сбыт"]
[64,"Городской округ г.Ярославль","г. Ярославль","78701000","ОАО \"ТЭСС\"","7603015835","760301001","производство (некомбинированная выработка)+передача+сбыт"]
[65,"Городской округ г.Ярославль","г. Ярославль","78701000","ОАО \"Яргортеплоэнерго\"","7606047507","760601001","производство (некомбинированная выработка)"]
[66,"Городской округ г.Ярославль","г. Ярославль","78701000","ОАО \"Яркоммунсервис\"","7604016214","760401001","производство (некомбинированная выработка)+передача+сбыт"]
[67,"Городской округ г.Ярославль","г. Ярославль","78701000","ОАО \"Ярославльводоканал\"","7606069518","760601001","производство (некомбинированная выработка)+передача+сбыт"]
[68,"Городской округ г.Ярославль","г. Ярославль","78701000","ОАО \"Ярославский вагоноремонтный завод \"Ремпутьмаш\"","7603030907","760301001","производство (некомбинированная выработка)+передача+сбыт"]
[69,"Городской округ г.Ярославль","г. Ярославль","78701000","ОАО \"Ярославский завод дизельной аппаратуры\"","7601000833","760601001","производство (некомбинированная выработка)+передача+сбыт"]
[70,"Городской округ г.Ярославль","г. Ярославль","78701000","ОАО \"Ярославский комбинат технических тканей \"Красный Перекоп\"","7601001146","760501001","Передача"]
[71,"Городской округ г.Ярославль","г. Ярославль","78701000","ОАО \"Ярославский ордена Ленина и ордена Октябрьской революции шинный завод\"","7601001509","760150001","Передача"]
[72,"Городской округ г.Ярославль","г. Ярославль","78701000","ОАО \"Ярославский радиозавод\"","7601000086","760401001","производство (некомбинированная выработка)+передача+сбыт"]
[73,"Городской округ г.Ярославль","г. Ярославль","78701000","ОАО \"Ярославский технический углерод\"","7605000714","760150001","производство (некомбинированная выработка)+передача+сбыт"]
[74,"Городской округ г.Ярославль","г. Ярославль","78701000","ООО \"АДС\"","7604008710","760401001","производство (некомбинированная выработка)+передача+сбыт"]
[75,"Городской округ г.Ярославль","г. Ярославль","78701000","ООО \"Котельная завода \"Пролетарская свобода\"","7604077129","760401001","производство (некомбинированная выработка)+передача+сбыт"]
[76,"Городской округ г.Ярославль","г. Ярославль","78701000","ООО \"РСК \"ТЭР\"- Теплоэнергоремонт\"","7606036103","760601001","производство (некомбинированная выработка)+передача+сбыт"]
[77,"Городской округ г.Ярославль","г. Ярославль","78701000","ООО \"Спецторг Плюс\"","7604076460","760401001","производство (некомбинированная выработка)+передача+сбыт"]
[78,"Городской округ г.Ярославль","г. Ярославль","78701000","ООО \"Тепловая энергетическая компания - 1\"","7604188573","760401001","производство (некомбинированная выработка)+передача+сбыт"]
[79,"Городской округ г.Ярославль","г. Ярославль","78701000","ООО \"Энергия-1\"","7605005021","760501001","производство (некомбинированная выработка)+передача+сбыт"]
[80,"Городской округ г.Ярославль","г. Ярославль","78701000","ООО \"Энергомаш\"","7603022945","760301001","Передача"]
[81,"Городской округ г.Ярославль","г. Ярославль","78701000","ООО \"Ярославская фабрика валяной обуви\"","7603015433","760301001","производство (некомбинированная выработка)+передача+сбыт"]
[82,"Городской округ г.Ярославль","г. Ярославль","78701000","ООО \"Ярославский завод строительных конструкций\"","7604118583","760401001","производство (некомбинированная выработка)+передача+сбыт"]
[83,"Городской округ г.Ярославль","г. Ярославль","78701000","Северная Дирекция по тепловодоснабжению структурное подразделение Центральной дирекции по тепловодоснабжению филиал ОАО \"РЖД\"","7708503727","760445028","производство (некомбинированная выработка)"]
[84,"Городской округ г.Ярославль","г. Ярославль","78701000","Ярославский территориальный участок северной дирекции по тепловодоснабжению - структурного подразделения центральной дирекции по тепловодоснабжению -  филиала ОАО \"РЖД\"","7708503727","997650004","производство (некомбинированная выработка)+передача+сбыт"]
[85,"Городской округ г.Ярославль","г. Ярославль","78701000","филиал ОАО РЭУ\" \"Владимирский\"","7714783092","332743001","производство (некомбинированная выработка)+передача+сбыт"]
[86,"Даниловский муниципальный район","Городское поселение г. Данилов","78615101","ОАО \"Даниловский маслосырзвод\"","7617000268","761701001","производство (некомбинированная выработка)+передача+сбыт"]
[87,"Даниловский муниципальный район","Городское поселение г. Данилов","78615101","ОАО \"Даниловское ЖКХ\"","7617008098","761701001","производство (некомбинированная выработка)"]
[88,"Даниловский муниципальный район","Даниловский муниципальный район","78615000","ОАО \"Яркоммунсервис\"","7604016214","760401001","производство (некомбинированная выработка)+передача+сбыт"]
[89,"Даниловский муниципальный район","Даниловский муниципальный район","78615000","Ярославский территориальный участок северной дирекции по тепловодоснабжению - структурного подразделения центральной дирекции по тепловодоснабжению -  филиала ОАО \"РЖД\"","7708503727","997650004","производство (некомбинированная выработка)+передача+сбыт"]
[90,"Любимский муниципальный район","Городское поселение г. Любим","78618101","Любимское МУП ЖКХ","7618000140","761801001","производство (некомбинированная выработка)+передача+сбыт"]
[91,"Мышкинский муниципальный район","Городское поселение г. Мышкин","78621101","ОАО \"Ярославская генерирующая компания\"","7604178769","760601001","производство (некомбинированная выработка)+передача+сбыт"]
[92,"Мышкинский муниципальный район","Городское поселение г. Мышкин","78621101","ФЛ Мышкинское ЛПУ МГ- филиал ООО \"Газпром трансгаз Ухта\"","1102024468","761902001","производство (некомбинированная выработка)+передача+сбыт"]
[93,"Мышкинский муниципальный район","Мышкинский муниципальный район","78621000","ОАО \"Ярославская генерирующая компания\"","7604178769","760601001","производство (некомбинированная выработка)+передача+сбыт"]
[94,"Мышкинский муниципальный район","Охотинское сельское поселение","78621430","ОАО \"Ярославская генерирующая компания\"","7604178769","760601001","производство (некомбинированная выработка)+передача+сбыт"]
[95,"Мышкинский муниципальный район","Приволжское сельское поселение","78621415","ОАО \"Яркоммунсервис\"","7604016214","760401001","производство (некомбинированная выработка)+передача+сбыт"]
[96,"Мышкинский муниципальный район","Приволжское сельское поселение","78621415","ОАО \"Ярославская генерирующая компания\"","7604178769","760601001","производство (некомбинированная выработка)+передача+сбыт"]
[97,"Некоузский муниципальный район","Веретейское сельское поселение","78623404","Филиал ФГУП \"ЖКУ РАН\" Борок","7736111591","762043001","производство (некомбинированная выработка)+передача+сбыт"]
[98,"Некоузский муниципальный район","Волжское сельское поселение","78623406","МУП \"Волжское жилищно-коммунальное хозяйство\"","7620004826","762001001","производство (некомбинированная выработка)+передача+сбыт"]
[99,"Некоузский муниципальный район","Некоузский муниципальный район","78623000","МУП \"Октябрьское жилищно-коммунальное хозяйство\"","7620004833","762001001","производство (некомбинированная выработка)+передача+сбыт"]
[100,"Некоузский муниципальный район","Некоузский муниципальный район","78623000","Ярославское районное нефтепроводное управление ООО \"Балтийские магистральные нефтепроводы\"","4704041900","762702001","производство (некомбинированная выработка)+передача+сбыт"]
[101,"Некоузский муниципальный район","Некоузское сельское поселение","78623415","МУП \"Энергосервис\"","7620004657","762001001","производство (некомбинированная выработка)+передача+сбыт"]
[102,"Некрасовский муниципальный район","Бурмакино сельское поселение","78626409","Бурмакинское МП ЖКХ","7621001440","762101001","производство (некомбинированная выработка)+передача+сбыт"]
[103,"Некрасовский муниципальный район","Бурмакино сельское поселение","78626409","Ярославская дистанция гражданских сооружений, водоснабжения и водоотведения ЯО СЖД-филиала ОАО \"РЖД\"","7708503727","997650007","производство (некомбинированная выработка)+передача+сбыт"]
[104,"Некрасовский муниципальный район","Красный Профинтерн сельское поселение","78626444","МУП ЖКХ \"Заволжское\"","7621005558","762101001","производство (некомбинированная выработка)+передача+сбыт"]
[105,"Некрасовский муниципальный район","Красный Профинтерн сельское поселение","78626444","МУП ЖКХ \"Заволжское\"","7621005558","762101001","производство комбинированная выработка"]
[106,"Некрасовский муниципальный район","Некрасовский муниципальный район","78626000","ОАО \"Яркоммунсервис\"","7604016214","760401001","производство (некомбинированная выработка)+передача+сбыт"]
[107,"Некрасовский муниципальный район","Некрасовский муниципальный район","78626000","Ярославский территориальный участок северной дирекции по тепловодоснабжению - структурного подразделения центральной дирекции по тепловодоснабжению -  филиала ОАО \"РЖД\"","7708503727","997650004","производство (некомбинированная выработка)+передача+сбыт"]
[108,"Некрасовский муниципальный район","Некрасовское сельское поселение","78626457","ЗАО \"Левашово\"","7621000461","762101001","производство (некомбинированная выработка)"]
[109,"Некрасовский муниципальный район","Некрасовское сельское поселение","78626457","Некрасовское МП ЖКХ","7621000133","762101001","производство (некомбинированная выработка)+передача+сбыт"]
[110,"Некрасовский муниципальный район","Некрасовское сельское поселение","78626457","ООО \"Санаторий Золотой колос\"","7621006054","762101001","производство (некомбинированная выработка)+передача+сбыт"]
[111,"Первомайский муниципальный район","Городское поселение п.Пречистое","78629151","ОАО \"Первомайское коммунальное хозяйство\"","7623004895","762301001","производство (некомбинированная выработка)+передача+сбыт"]
[112,"Первомайский муниципальный район","Городское поселение п.Пречистое","78629151","ОАО \"ТЭСС\"","7603015835","760301001","производство (некомбинированная выработка)+передача+сбыт"]
[113,"Первомайский муниципальный район","Кукобойское сельское поселение","78629435","ОАО \"Первомайское коммунальное хозяйство\"","7623004895","762301001","производство (некомбинированная выработка)+передача+сбыт"]
[114,"Первомайский муниципальный район","Кукобойское сельское поселение","78629435","ООО \"Рубеж\"","7623004581","762301001","производство (некомбинированная выработка)+передача+сбыт"]
[115,"Первомайский муниципальный район","Первомайский муниципальный район","78629000","Вологодский территориальный участок северной дирекции по тепловодоснабжению - структурного подразделения центральной дирекции по тепловодоснабжению  филиала ОАО \"РЖД\"","7708503727","997650008","производство (некомбинированная выработка)+передача+сбыт"]
[116,"Первомайский муниципальный район","Первомайский муниципальный район","78629000","ОАО \"Первомайское коммунальное хозяйство\"","7623004895","762301001","производство (некомбинированная выработка)+передача+сбыт"]
[117,"Первомайский муниципальный район","Пречистенское сельское поселение","78629450","ОАО \"Первомайское коммунальное хозяйство\"","7623004895","762301001","производство (некомбинированная выработка)+передача+сбыт"]
[118,"Переславский муниципальный район","Нагорьевское сельское поселение","78632452","ОАО \"Ярославская генерирующая компания\"","7604178769","760601001","производство (некомбинированная выработка)+передача+сбыт"]
[119,"Переславский муниципальный район","Нагорьевское сельское поселение","78632452","Ярославский территориальный участок северной дирекции по тепловодоснабжению - структурного подразделения центральной дирекции по тепловодоснабжению -  филиала ОАО \"РЖД\"","7708503727","997650004","производство (некомбинированная выработка)+передача+сбыт"]
[120,"Переславский муниципальный район","Переславский муниципальный район","78632000","ОАО \"Ярославская генерирующая компания\"","7604178769","760601001","производство (некомбинированная выработка)+передача+сбыт"]
[121,"Переславский муниципальный район","Переславский муниципальный район","78632000","Ярославский территориальный участок северной дирекции по тепловодоснабжению - структурного подразделения центральной дирекции по тепловодоснабжению -  филиала ОАО \"РЖД\"","7708503727","997650004","производство (некомбинированная выработка)+передача+сбыт"]
[122,"Переславский муниципальный район","Пригородное сельское поселение","78632455","ОАО \"Ярославская генерирующая компания\"","7604178769","760601001","производство (некомбинированная выработка)+передача+сбыт"]
[123,"Переславский муниципальный район","Пригородное сельское поселение","78632455","Ярославский территориальный участок северной дирекции по тепловодоснабжению - структурного подразделения центральной дирекции по тепловодоснабжению -  филиала ОАО \"РЖД\"","7708503727","997650004","производство (некомбинированная выработка)+передача+сбыт"]
[124,"Переславский муниципальный район","Рязанцевское сельское поселение","78632468","ОАО \"Ярославская генерирующая компания\"","7604178769","760601001","производство (некомбинированная выработка)+передача+сбыт"]
[125,"Переславский муниципальный район","Рязанцевское сельское поселение","78632468","Ярославский территориальный участок северной дирекции по тепловодоснабжению - структурного подразделения центральной дирекции по тепловодоснабжению -  филиала ОАО \"РЖД\"","7708503727","997650004","производство (некомбинированная выработка)+передача+сбыт"]
[126,"Пошехонский муниципальный район","Пошехонский муниципальный район","78634000","ОАО \"Пошехонская теплосеть\"","7624004506","762401001","производство (некомбинированная выработка)+передача+сбыт"]
[127,"Ростовский муниципальный район","Городское поселение г.Ростов","78637101","ОАО \"Ярославская генерирующая компания\"","7604178769","760601001","производство (некомбинированная выработка)+передача+сбыт"]
[128,"Ростовский муниципальный район","Ишня сельское поселение","78637412","ОАО \"Ярославская генерирующая компания\"","7604178769","760601001","производство (некомбинированная выработка)+передача+сбыт"]
[129,"Ростовский муниципальный район","Ишня сельское поселение","78637412","ООО \"Ростовавторемонт\"","7609023014","760901001","производство (некомбинированная выработка)+передача+сбыт"]
[130,"Ростовский муниципальный район","Петровское сельское поселение","78637441","ОАО \"Ярославская генерирующая компания\"","7604178769","760601001","производство (некомбинированная выработка)+передача+сбыт"]
[131,"Ростовский муниципальный район","Поречье-Рыбное сельское поселение","78637442","ОАО \"Ярославская генерирующая компания\"","7604178769","760601001","производство (некомбинированная выработка)+передача+сбыт"]
[132,"Ростовский муниципальный район","Поречье-Рыбное сельское поселение","78637442","Ярославский филиал ОАО \"Ростелеком\"","7707049388","760443001","производство (некомбинированная выработка)+передача+сбыт"]
[133,"Ростовский муниципальный район","Ростовский муниципальный район","78637000","ЗАО \"Атрус\"","7609002208","760901001","производство (некомбинированная выработка)+сбыт"]
[134,"Ростовский муниципальный район","Ростовский муниципальный район","78637000","ЗАО \"Консервный завод \"Поречский\"","7609015486","760901001","производство (некомбинированная выработка)+передача+сбыт"]
[135,"Ростовский муниципальный район","Ростовский муниципальный район","78637000","МУП \"Ростовская коммунальная энергетика\"","7604131880","760401001","производство (некомбинированная выработка)+передача+сбыт"]
[136,"Ростовский муниципальный район","Ростовский муниципальный район","78637000","ОАО \"Яркоммунсервис\"","7604016214","760401001","производство (некомбинированная выработка)+передача+сбыт"]
[137,"Ростовский муниципальный район","Ростовский муниципальный район","78637000","ОАО \"Ярославская генерирующая компания\"","7604178769","760601001","производство (некомбинированная выработка)+передача+сбыт"]
[138,"Ростовский муниципальный район","Ростовский муниципальный район","78637000","ООО \"Энергетическая Компания \"ТеплоПром\"","7609024427","760901001","производство (некомбинированная выработка)+передача+сбыт"]
[139,"Ростовский муниципальный район","Ростовский муниципальный район","78637000","Ярославский территориальный участок северной дирекции по тепловодоснабжению - структурного подразделения центральной дирекции по тепловодоснабжению -  филиала ОАО \"РЖД\"","7708503727","997650004","производство (некомбинированная выработка)+передача+сбыт"]
[140,"Ростовский муниципальный район","Семибратово сельское поселение","78637447","ОАО \"ТЭСС\"","7603015835","760301001","производство (некомбинированная выработка)+передача+сбыт"]
[141,"Ростовский муниципальный район","Семибратово сельское поселение","78637447","ОАО \"Фильтры индустриальные газоочистные\"","7609001719","760901001","Передача"]
[142,"Ростовский муниципальный район","Семибратово сельское поселение","78637447","ОАО \"Ярославская генерирующая компания\"","7604178769","760601001","производство (некомбинированная выработка)+передача+сбыт"]
[143,"Рыбинский муниципальный район","Арефинское сельское поселение","78640411","ООО \"Котельная завода \"Пролетарская свобода\"","7604077129","760401001","производство (некомбинированная выработка)+передача+сбыт"]
[144,"Рыбинский муниципальный район","Волжское сельское поселение","78640414","МБУ \"Волжское ЖКХ\"","7610088538","761001001","производство (некомбинированная выработка)+передача+сбыт"]
[145,"Рыбинский муниципальный район","Камениковское сельское поселение","78640415","МУП РМО ЯО \"Коммунальные системы\"","7610074824","761001001","производство (некомбинированная выработка)+передача+сбыт"]
[146,"Рыбинский муниципальный район","Октябрьское сельское поселение","78640412","ООО \"Лесла\"","7610015917","761001001","производство комбинированная выработка"]
[147,"Рыбинский муниципальный район","Октябрьское сельское поселение","78640412","ООО \"Лесла\"","7610015917","761001001","производство (некомбинированная выработка)+передача+сбыт"]
[148,"Рыбинский муниципальный район","Рыбинский муниципальный район","78640000","ЗАО \"Рыбинсклессервис\"","7610050037","761001001","производство (некомбинированная выработка)+передача+сбыт"]
[149,"Рыбинский муниципальный район","Рыбинский муниципальный район","78640000","ЗАО \"Санаторий имени Воровского\"","7626001860","761001001","производство (некомбинированная выработка)+передача+сбыт"]
[150,"Рыбинский муниципальный район","Рыбинский муниципальный район","78640000","ОАО \"Яркоммунсервис\"","7604016214","760401001","производство (некомбинированная выработка)+передача+сбыт"]
[151,"Рыбинский муниципальный район","Рыбинский муниципальный район","78640000","ООО \"Котельная завода \"Пролетарская свобода\"","7604077129","760401001","производство (некомбинированная выработка)+передача+сбыт"]
[152,"Рыбинский муниципальный район","Рыбинский муниципальный район","78640000","ООО \"Санаторий \"Черная речка\"","7610057882","761001001","производство (некомбинированная выработка)+передача+сбыт"]
[153,"Рыбинский муниципальный район","Тихменевское сельское поселение","78640440","ООО \"Лесла\"","7610015917","761001001","производство (некомбинированная выработка)+передача+сбыт"]
[154,"Рыбинский муниципальный район","Тихменевское сельское поселение","78640440","ООО \"Лесла\"","7610015917","761001001","производство комбинированная выработка"]
[155,"Тутаевский муниципальный район","Городское поселение г.Тутаев","78643101","МУП \"Теплоэнергосеть\"","7611013729","761101001","производство (некомбинированная выработка)+передача+сбыт"]
[156,"Тутаевский муниципальный район","Городское поселение г.Тутаев","78643101","ОАО \"Ярославская генерирующая компания\"","7604178769","760601001","производство (некомбинированная выработка)+передача+сбыт"]
[157,"Тутаевский муниципальный район","Константиновское сельское поселение","78643420","ОАО \"Ярославская генерирующая компания\"","7604178769","760601001","производство (некомбинированная выработка)+передача+сбыт"]
[158,"Тутаевский муниципальный район","Левобережное сельское поселение","78643443","ОАО \"Яркоммунсервис\"","7604016214","760401001","производство (некомбинированная выработка)+передача+сбыт"]
[159,"Тутаевский муниципальный район","Левобережное сельское поселение","78643443","ООО \"УК Левобережье\"","7611018780","761101001","производство (некомбинированная выработка)+передача+сбыт"]
[160,"Тутаевский муниципальный район","Тутаевский муниципальный район","78643000","МУП ТМР \"Артемьевское ЖКХ\"","7611017385","761101001","производство (некомбинированная выработка)+передача+сбыт"]
[161,"Тутаевский муниципальный район","Тутаевский муниципальный район","78643000","МУП ТМР \"Чебаковское ЖКХ\"","7611017392","761101001","производство (некомбинированная выработка)+передача+сбыт"]
[162,"Тутаевский муниципальный район","Тутаевский муниципальный район","78643000","ОАО \"Яркоммунсервис\"","7604016214","760401001","производство (некомбинированная выработка)+передача+сбыт"]
[163,"Тутаевский муниципальный район","Тутаевский муниципальный район","78643000","ОАО \"Ярославская генерирующая компания\"","7604178769","760601001","производство (некомбинированная выработка)+передача+сбыт"]
[164,"Тутаевский муниципальный район","Тутаевский муниципальный район","78643000","ОАО \"Ярославский нефтеперерабатывающий завод им. Д.И. Менделеева\"","7611002100","761101001","производство (некомбинированная выработка)+передача+сбыт"]
[165,"Угличский муниципальный район","Головинское сельское поселение","78646440","ОАО \"Ярославская генерирующая компания\"","7604178769","760601001","производство (некомбинированная выработка)+передача+сбыт"]
[166,"Угличский муниципальный район","Городское поселение г.Углич","78646101","МУП \"Предприятие коммунально-бытового обслуживания\"","7612039712","761201001","производство (некомбинированная выработка)+передача+сбыт"]
[167,"Угличский муниципальный район","Городское поселение г.Углич","78646101","МУП \"Тепловые сети\"","7612043980","761201001","Передача"]
[168,"Угличский муниципальный район","Городское поселение г.Углич","78646101","ОАО \"Угличское межрайонное производственное ремонтно-эксплуатационное объединение мелиорации и водного хозяйства\"\"УМПРЭО\"","7612034810","761201001","производство (некомбинированная выработка)+передача+сбыт"]
[169,"Угличский муниципальный район","Городское поселение г.Углич","78646101","ОАО \"Ярославская генерирующая компания\"","7604178769","760601001","производство (некомбинированная выработка)+передача+сбыт"]
[170,"Угличский муниципальный район","Городское поселение г.Углич","78646101","ООО \"Угличский завод минеральной воды\"","7612003339","761201001","производство (некомбинированная выработка)+передача+сбыт"]
[171,"Угличский муниципальный район","Ильинское сельское поселение","78646420","ОАО \"Ярославская генерирующая компания\"","7604178769","760601001","производство (некомбинированная выработка)+передача+сбыт"]
[172,"Угличский муниципальный район","Отрадновское сельское поселение","78646475","ОАО \"Ярославская генерирующая компания\"","7604178769","760601001","производство (некомбинированная выработка)+передача+сбыт"]
[173,"Угличский муниципальный район","Слободское сельское поселение","78646410","ОАО \"Ярославская генерирующая компания\"","7604178769","760601001","производство (некомбинированная выработка)+передача+сбыт"]
[174,"Угличский муниципальный район","Угличский муниципальный район","78646000","ОАО \"ТЭСС\"","7603015835","760301001","производство (некомбинированная выработка)+передача+сбыт"]
[175,"Угличский муниципальный район","Угличский муниципальный район","78646000","ОАО \"Ярославская генерирующая компания\"","7604178769","760601001","производство (некомбинированная выработка)+передача+сбыт"]
[176,"Угличский муниципальный район","Угличский муниципальный район","78646000","ООО \"Угличский экспериментальный ремонтно-механический завод\"","7612033358","761201001","производство (некомбинированная выработка)+передача+сбыт"]
[177,"Угличский муниципальный район","Угличский муниципальный район","78646000","ООО \"Энергокомпания\"","7612044470","761201001","производство (некомбинированная выработка)+передача+сбыт"]
[178,"Угличский муниципальный район","Угличский муниципальный район","78646000","ООО \"Энергосервис\"","7612041905","761201001","производство (некомбинированная выработка)+передача+сбыт"]
[179,"Угличский муниципальный район","Угличский муниципальный район","78646000","ФГУП Экспериментальный сыродельный завод Россельхозакадемии","7612002423","761201001","производство (некомбинированная выработка)+передача+сбыт"]
[180,"Угличский муниципальный район","Улейминское сельское поселение","78646480","ОАО \"Ярославская генерирующая компания\"","7604178769","760601001","производство (некомбинированная выработка)+передача+сбыт"]
[181,"Ярославский муниципальный район","Ивняковское сельское поселение","78650455","ОАО \"Яркоммунсервис\"","7604016214","760401001","производство (некомбинированная выработка)+передача+сбыт"]
[182,"Ярославский муниципальный район","Курбское сельское поселение","78650440","ФГОУСП \"Ярославский аграрно-политехнический колледж\"","7627003250","762701001","производство (некомбинированная выработка)+передача+сбыт"]
[183,"Ярославский муниципальный район","Туношенское сельское поселение","78650495","ОАО \"Яркоммунсервис\"","7604016214","760401001","производство (некомбинированная выработка)+передача+сбыт"]
[184,"Ярославский муниципальный район","Туношенское сельское поселение","78650495","Ярославская дистанция гражданских сооружений, водоснабжения и водоотведения ЯО СЖД-филиала ОАО \"РЖД\"","7708503727","997650007","производство (некомбинированная выработка)+передача+сбыт"]
[185,"Ярославский муниципальный район","Ярославский муниципальный район","78650000","ЗАО \"Пансионат отдыха \"Ярославль\"","7627015577","762701001","производство (некомбинированная выработка)+передача+сбыт"]
[186,"Ярославский муниципальный район","Ярославский муниципальный район","78650000","ОАО \"ЖКХ \"Заволжье\"","7627032974","762701001","производство (некомбинированная выработка)+передача+сбыт"]
[187,"Ярославский муниципальный район","Ярославский муниципальный район","78650000","ОАО \"Красные Ткачи\"","7627002923","762701001","производство (некомбинированная выработка)+сбыт"]
[188,"Ярославский муниципальный район","Ярославский муниципальный район","78650000","ОАО \"Санаторий \"Красный Холм\"","7627015619","762701001","производство (некомбинированная выработка)"]
[189,"Ярославский муниципальный район","Ярославский муниципальный район","78650000","ОАО \"Ярославльводоканал\"","7606069518","760601001","производство (некомбинированная выработка)+передача+сбыт"]
[190,"Ярославский муниципальный район","Ярославский муниципальный район","78650000","ООО \"Муниципальные коммунальные системы\"","7627036930","762701001","производство (некомбинированная выработка)+передача+сбыт"]
[191,"Ярославский муниципальный район","Ярославский муниципальный район","78650000","ООО \"Санаторий - профилакторий \"Ярославнефтеоргсинтез\"","7627025663","762701001","производство (некомбинированная выработка)+передача+сбыт"]
[192,"Ярославский муниципальный район","Ярославский муниципальный район","78650000","ФГУП \"Григорьевское\" РАСХН","7627000901","762701001","производство (некомбинированная выработка)+передача+сбыт"]
[193,"","","","Ярославский территориальный участок северной дирекции по тепловодоснабжению - структурного подразделения центральной дирекции по тепловодоснабжению -  филиала ОАО \"РЖД\"","7708503727","997650004","производство (некомбинированная выработка)+передача+сбыт"]

{"sheet":"REESTR_FILTERED","index":14,"n_rows":3,"n_cols":8,"rows_kept":3,"hidden":true}
["№","МР","МО","МО ОКТМО","ОРГАНИЗАЦИЯ","ИНН","КПП","ВИД ДЕЯТЕЛЬНОСТИ"]
[1,"Городской округ г.Ярославль","г. Ярославль","78701000","МУП \"Яргорэнергосбыт\"","7604088265","760301001","Передача"]
[2,"Городской округ г.Ярославль","г. Ярославль","78701000","ОАО \"Яргортеплоэнерго\"","7606047507","760601001","производство (некомбинированная выработка)"]

{"sheet":"REESTR_MO","index":15,"n_rows":104,"n_cols":5,"rows_kept":104,"hidden":true}
["МР","МО","МО_ОКТМО","МР","ИМЯ ДИАПАЗОНА"]
["Большесельский муниципальный район","Благовещенское сельское поселение","78603411","Большесельский муниципальный район","MO_LIST_2"]
["Большесельский муниципальный район","Большесельский муниципальный район","78603000","Борисоглебский муниципальный район","MO_LIST_3"]
["Большесельский муниципальный район","Большесельское сельское поселение","78603422","Брейтовский муниципальный район","MO_LIST_4"]
["Большесельский муниципальный район","Вареговское сельское поселение","78603427","Гаврилов-Ямский муниципальный район","MO_LIST_5"]
["Борисоглебский муниципальный район","Андреевское сельское поселение","78606422","Городской округ г.Переславль-Залесский","MO_LIST_6"]
["Борисоглебский муниципальный район","Борисоглебский муниципальный район","78606000","Городской округ г.Рыбинск","MO_LIST_7"]
["Борисоглебский муниципальный район","Борисоглебское сельское поселение","78606407","Городской округ г.Ярославль","MO_LIST_8"]
["Борисоглебский муниципальный район","Вощажниковское сельское поселение","78606410","Даниловский муниципальный район","MO_LIST_9"]
["Борисоглебский муниципальный район","Высоковское сельское поселение","78606415","Любимский муниципальный район","MO_LIST_10"]
["Борисоглебский муниципальный район","Инальцинское сельское поселение","78606405","Мышкинский муниципальный район","MO_LIST_11"]
["Брейтовский муниципальный район","Брейтовский муниципальный район","78609000","Некоузский муниципальный район","MO_LIST_12"]
["Брейтовский муниципальный район","Брейтовское сельское поселение","78609411","Некрасовский муниципальный район","MO_LIST_13"]
["Брейтовский муниципальный район","Гореловское сельское поселение","78609422","Первомайский муниципальный район","MO_LIST_14"]
["Брейтовский муниципальный район","Прозоровское сельское поселение","78609433","Переславский муниципальный район","MO_LIST_15"]
["Гаврилов-Ямский муниципальный район","Великосельское сельское поселение","78612405","Пошехонский муниципальный район","MO_LIST_16"]
["Гаврилов-Ямский муниципальный район","Гаврилов-Ямский муниципальный район","78612000","Ростовский муниципальный район","MO_LIST_17"]
["Гаврилов-Ямский муниципальный район","Городское поселение г. Гаврилов-Ям","78612101","Рыбинский муниципальный район","MO_LIST_18"]
["Гаврилов-Ямский муниципальный район","Заячье-Холмское сельское поселение","78612744","Тутаевский муниципальный район","MO_LIST_19"]
["Гаврилов-Ямский муниципальный район","Митинское сельское поселение","78612450","Угличский муниципальный район","MO_LIST_20"]
["Гаврилов-Ямский муниципальный район","Шопшинское сельское поселение","78612490","Ярославский муниципальный район","MO_LIST_21"]
["Городской округ г.Переславль-Залесский","Городской округ г.Переславль-Залесский","78705000"]
["Городской округ г.Переславль-Залесский","г. Переславль-Залесский","78705000"]
["Городской округ г.Рыбинск","Городской округ г.Рыбинск","78640101"]
["Городской округ г.Рыбинск","г.Рыбинск","78640101"]
["Городской округ г.Ярославль","Городской округ г.Ярославль","78701000"]
["Городской округ г.Ярославль","г. Ярославль","78701000"]
["Даниловский муниципальный район","Городское поселение г. Данилов","78615101"]
["Даниловский муниципальный район","Даниловский муниципальный район","78615000"]
["Даниловский муниципальный район","Даниловское сельское поселение","78615435"]
["Даниловский муниципальный район","Дмитриевское сельское поселение","78615420"]
["Даниловский муниципальный район","Середское сельское поселение","78615470"]
["Любимский муниципальный район","Воскресенское сельское поселение","78618405"]
["Любимский муниципальный район","Городское поселение г. Любим","78618101"]
["Любимский муниципальный район","Ермаковское сельское поселение","78618411"]
["Любимский муниципальный район","Любимский муниципальный район","78618000"]
["Любимский муниципальный район","Осецкое сельское поселение","78618433"]
["Мышкинский муниципальный район","Городское поселение г. Мышкин","78621101"]
["Мышкинский муниципальный район","Мышкинский муниципальный район","78621000"]
["Мышкинский муниципальный район","Охотинское сельское поселение","78621430"]
["Мышкинский муниципальный район","Приволжское сельское поселение","78621415"]
["Некоузский муниципальный район","Веретейское сельское поселение","78623404"]
["Некоузский муниципальный район","Волжское сельское поселение","78623406"]
["Некоузский муниципальный район","Некоузский муниципальный район","78623000"]
["Некоузский муниципальный район","Некоузское сельское поселение","78623415"]
["Некоузский муниципальный район","Октябрьское сельское поселение","78623427"]
["Некрасовский муниципальный район","Бурмакино сельское поселение","78626409"]
["Некрасовский муниципальный район","Красный Профинтерн сельское поселение","78626444"]
["Некрасовский муниципальный район","Некрасовский муниципальный район","78626000"]
["Некрасовский муниципальный район","Некрасовское сельское поселение","78626457"]
["Первомайский муниципальный район","Городское поселение п.Пречистое","78629151"]
["Первомайский муниципальный район","Кукобойское сельское поселение","78629435"]
["Первомайский муниципальный район","Первомайский муниципальный район","78629000"]
["Первомайский муниципальный район","Пречистенское сельское поселение","78629450"]
["Переславский муниципальный район","Нагорьевское сельское поселение","78632452"]
["Переславский муниципальный район","Переславский муниципальный район","78632000"]
["Переславский муниципальный район","Пригородное сельское поселение","78632455"]
["Переславский муниципальный район","Рязанцевское сельское поселение","78632468"]
["Пошехонский муниципальный район","Белосельское сельское поселение","78634404"]
["Пошехонский муниципальный район","Городское поселение Пошехонье","78634101"]
["Пошехонский муниципальный район","Ермаковское сельское поселение","78634410"]
["Пошехонский муниципальный район","Кременевское сельское поселение","78634460"]
["Пошехонский муниципальный район","Пошехонский муниципальный район","78634000"]
["Пошехонский муниципальный район","Пригородное сельское поселение","78634436"]
["Ростовский муниципальный район","Городское поселение г.Ростов","78637101"]
["Ростовский муниципальный район","Ишня сельское поселение","78637412"]
["Ростовский муниципальный район","Петровское сельское поселение","78637441"]
["Ростовский муниципальный район","Поречье-Рыбное сельское поселение","78637442"]
["Ростовский муниципальный район","Ростовский муниципальный район","78637000"]
["Ростовский муниципальный район","Семибратово сельское поселение","78637447"]
["Рыбинский муниципальный район","Арефинское сельское поселение","78640411"]
["Рыбинский муниципальный район","Волжское сельское поселение","78640414"]
["Рыбинский муниципальный район","Глебовское сельское поселение","78640429"]
["Рыбинский муниципальный район","Городское поселение п.Песочное","78640154"]
["Рыбинский муниципальный район","Камениковское сельское поселение","78640415"]
["Рыбинский муниципальный район","Назаровское сельское поселение","78640426"]
["Рыбинский муниципальный район","Огарковское сельское поселение","78640418"]
["Рыбинский муниципальный район","Октябрьское сельское поселение","78640412"]
["Рыбинский муниципальный район","Покровское сельское поселение","78640427"]
["Рыбинский муниципальный район","Рыбинский муниципальный район","78640000"]
["Рыбинский муниципальный район","Судоверфское сельское поселение","78640441"]
["Рыбинский муниципальный район","Тихменевское сельское поселение","78640440"]
["Тутаевский муниципальный район","Артемьевское сельское поселение","78643405"]
["Тутаевский муниципальный район","Городское поселение г.Тутаев","78643101"]
["Тутаевский муниципальный район","Константиновское сельское поселение","78643420"]
["Тутаевский муниципальный район","Левобережное сельское поселение","78643443"]
["Тутаевский муниципальный район","Тутаевский муниципальный район","78643000"]
["Тутаевский муниципальный район","Чебаковское сельское поселение","78643450"]
["Угличский муниципальный район","Головинское сельское поселение","78646440"]
["Угличский муниципальный район","Городское поселение г.Углич","78646101"]
["Угличский муниципальный район","Ильинское сельское поселение","78646420"]
["Угличский муниципальный район","Отрадновское сельское поселение","78646475"]
["Угличский муниципальный район","Слободское сельское поселение","78646410"]
["Угличский муниципальный район","Угличский муниципальный район","78646000"]
["Угличский муниципальный район","Улейминское сельское поселение","78646480"]
["Ярославский муниципальный район","Городское поселение п. Лесная Поляна","78650155"]
["Ярославский муниципальный район","Заволжское сельское поселение","78650410"]
["Ярославский муниципальный район","Ивняковское сельское поселение","78650455"]
["Ярославский муниципальный район","Карабихское сельское поселение","78650430"]
["Ярославский муниципальный район","Кузнечихинское сельское поселение","78650435"]
["Ярославский муниципальный район","Курбское сельское поселение","78650440"]
["Ярославский муниципальный район","Некрасовское сельское поселение","78650470"]
["Ярославский муниципальный район","Туношенское сельское поселение","78650495"]
["Ярославский муниципальный район","Ярославский муниципальный район","78650000"]

{"sheet":"modHyperlink","index":16,"n_rows":0,"n_cols":0,"rows_kept":0,"hidden":true}

{"sheet":"modChange","index":17,"n_rows":0,"n_cols":0,"rows_kept":0,"hidden":true}

{"sheet":"modfrmReestr","index":18,"n_rows":0,"n_cols":0,"rows_kept":0,"hidden":true}

{"sheet":"modPROV","index":19,"n_rows":0,"n_cols":0,"rows_kept":0,"hidden":true}

{"sheet":"modTitleSheetHeaders","index":20,"n_rows":0,"n_cols":0,"rows_kept":0,"hidden":true}

{"sheet":"modServiceModule","index":21,"n_rows":0,"n_cols":0,"rows_kept":0,"hidden":true}

{"sheet":"modClassifierValidate","index":22,"n_rows":0,"n_cols":0,"rows_kept":0,"hidden":true}

{"sheet":"modWindowClipboard","index":23,"n_rows":0,"n_cols":0,"rows_kept":0,"hidden":true}

{"sheet":"modInfo","index":24,"n_rows":0,"n_cols":0,"rows_kept":0,"hidden":true}

{"sheet":"modfrmDateChoose","index":25,"n_rows":0,"n_cols":0,"rows_kept":0,"hidden":true}

{"sheet":"modReestrMO","index":26,"n_rows":0,"n_cols":0,"rows_kept":0,"hidden":true}

{"sheet":"modDblClick","index":27,"n_rows":0,"n_cols":0,"rows_kept":0,"hidden":true}

{"sheet":"modUpdTemplMain","index":28,"n_rows":0,"n_cols":0,"rows_kept":0,"hidden":true}

{"sheet":"modSheetMain01","index":29,"n_rows":0,"n_cols":0,"rows_kept":0,"hidden":true}

{"sheet":"modSheetMain02","index":30,"n_rows":0,"n_cols":0,"rows_kept":0,"hidden":true}

{"sheet":"modSheetMain03","index":31,"n_rows":0,"n_cols":0,"rows_kept":0,"hidden":true}

{"sheet":"modSheetMain04","index":32,"n_rows":0,"n_cols":0,"rows_kept":0,"hidden":true}

{"sheet":"modSheetMain05","index":33,"n_rows":0,"n_cols":0,"rows_kept":0,"hidden":true}

{"sheet":"modRegionSelectSub","index":34,"n_rows":0,"n_cols":0,"rows_kept":0,"hidden":true}

{"sheet":"Паспорт","index":35,"n_rows":71,"n_cols":57,"rows_kept":71,"hidden":true,"merged":[[3,3,3,10],[5,3,5,10],[6,5,6,10],[7,5,7,10],[8,5,8,10],[9,5,9,10],[10,5,10,10],[11,5,11,10],[12,5,12,10],[13,5,13,10],[14,6,14,9],[15,5,15,10],[17,3,17,10],[18,5,18,10],[19,5,19,10],[20,5,20,10],[21,5,21,10],[22,5,22,10],[23,5,23,10],[25,3,25,10],[26,5,26,10],[27,3,27,10],[29,3,29,10],[30,5,30,10],[31,7,31,10],[32,7,32,10],[33,3,33,10],[35,3,35,10],[36,8,36,10],[37,8,37,10],[38,8,38,10],[39,8,39,10],[40,8,40,10],[41,8,41,10],[42,8,42,10],[43,8,43,10],[44,8,44,10],[45,8,45,10],[46,8,46,10],[47,8,47,10],[48,8,48,10],[49,8,49,10],[50,8,50,10],[51,8,51,10],[52,8,52,10],[53,8,53,10],[54,3,54,10],[56,3,56,10],[57,5,57,10],[58,5,58,10],[59,5,59,10],[61,3,61,10],[62,5,62,10],[63,5,63,10],[64,3,64,10],[66,3,66,10],[67,5,67,10],[68,5,68,10],[69,5,69,10],[70,5,70,10]]}
[{"$nulls":47},"Код диапазона:","Название диапазона:","Сфера регулирования:","Подсфера:","Тип информации в шаблоне:","Состояние шаблона:","Периодичность:","\"Геотип\" шаблона:","Тип шаблона:","Заказчик:"]
[{"$nulls":47},"ps_sr","Сфера регулирования:","Не определено","Не определено","Не определено","Не определено","Не определено","Не определено","Не определено","Не определено"]
[{"$nulls":47},"ps_ti","Тип информации в шаблоне:","NETS","водоотведение - очистка","Статистический","Проект","Единовременный","Региональный шаблон","Атомарный","РЭК"]
[{"$nulls":3},"Паспорт к шаблону",{"$nulls":43},"ps_ssh","Состояние шаблона:","Аэропорты","водоотведение - передача","Расчетный","Утвержден","Ежемесячный","Муниципальный шаблон","Сводный","ФСТ"]
[{"$nulls":47},"ps_p","Периодичность:","Газ","водоотведение - прием","Обосновывающие материалы",null,"Ежеквартальный","Шаблон от организации",null,"Экспертная организация"]
[{"$nulls":3},"1. Общие сведения",{"$nulls":43},"ps_geo","\"Геотип\" шаблона:","Железные дороги","водоснабжение - очистка",null,null,"Ежегодный"]
[{"$nulls":3},"1.1","Код",{"$nulls":42},"ps_tsh","Тип шаблона:","ЖКХ","водоснабжение - передача"]
[{"$nulls":3},"1.2","Краткое наименование",{"$nulls":42},"ps_psr","Подсфера:","Медицина","водоснабжение - подъем"]
[{"$nulls":3},"1.3","Полное наименование",{"$nulls":42},"ps_z","Заказчик:","Порты","выработка ТС  "]
[{"$nulls":3},"1.4","Сфера регулирования ",{"$nulls":44},"Связь","выработка ТС в режиме комбинированной выработки"]
[{"$nulls":3},"1.5","Подсфера",{"$nulls":44},"Транспорт","выработка электрической энергии"]
[{"$nulls":3},"1.6","Состояние шаблона (Утвержден/Проект)",{"$nulls":44},"Электроэнергетика","выработка+передача+сбыт ТС"]
[{"$nulls":3},"1.7","Заказчик",{"$nulls":45},"передача ТС"]
[{"$nulls":3},"1.8","Отчитывается",{"$nulls":45},"передача ЭЭ"]
[{"$nulls":3},"1.9","Тип шаблона",null,"Если шаблон сводный, необходимо указать код атомарного шаблона для него:",{"$nulls":43},"сбыт ТС"]
[{"$nulls":3},"1.10","Текущая версия",{"$nulls":45},"сбыт ЭЭ"]
[{"$nulls":50},"ТБО"]
[{"$nulls":3},"2. Организационные"]
[{"$nulls":3},"2.1","Тип информации в шаблоне "]
[{"$nulls":3},"2.2","Ответственный регулятор (от заказчика)"]
[{"$nulls":3},"2.3","Ответственный специалист (от СМА)"]
[{"$nulls":3},"2.4","Ответственный программист (от СМА)"]
[{"$nulls":3},"2.5","Ответственные за сбор данных (от СМА)"]
[{"$nulls":3},"2.6","Ответственные за сбор данных (от заказчика)"]
[]
[{"$nulls":3},"3. Законодательство (методики, приказы, постановления ...)"]
[null,null,"first","3.1","Документ1"]
[null,null,"end","Добавить документ"]
[]
[{"$nulls":3},"4. Периодичность"]
[{"$nulls":3},"4.1","Периодичность"]
[{"$nulls":4},"Мониторинги(прошедшие и плановые)","Дата начала","Дата окончания","Согласно (приказ, постановление, письмо)"]
[null,null,"first","4.2.1","Мониторинг1"]
[null,null,"end","Добавить мониторинг"]
[]
[{"$nulls":3},"5. Состав шаблона"]
[{"$nulls":4},"Лист","Последняя дата изменений эскиза","Состояние листа","Наименование витрины для листа","Комментарии"]
[null,null,"first","5.1.1"]
[null,null,"Удалить","5.1.2"]
[null,null,"Удалить","5.1.3"]
[null,null,"Удалить","5.1.4"]
[null,null,"Удалить","5.1.5"]
[null,null,"Удалить","5.1.6"]
[null,null,"Удалить","5.1.7"]
[null,null,"Удалить","5.1.8"]
[null,null,"Удалить","5.1.9"]
[null,null,"Удалить","5.1.10"]
[null,null,"Удалить","5.1.11"]
[null,null,"Удалить","5.1.12"]
[null,null,"Удалить","5.1.13"]
[null,null,"Удалить","5.1.14"]
[null,null,"Удалить","5.1.15"]
[null,null,"Удалить","5.1.16"]
[null,null,"Удалить","5.1.17"]
[null,null,"end","Добавить лист"]
[]
[{"$nulls":3},"6. Сроки и даты"]
[{"$nulls":3},"6.1.1","Даты получения последних эскизов, от экспертов"]
[{"$nulls":3},"6.1.2","Даты отправки шаблона на проверку"]
[{"$nulls":3},"6.1.3","Предполагаемый срок сдачи шаблона в эксплуатацию"]
[]
[{"$nulls":3},"7. Версии"]
[{"$nulls":4},"Версия","Отличия от предыдущей"]
[null,null,"first","7.1"]
[null,null,"end","Добавить версию"]
[]
[{"$nulls":3},"8. Дополнительно"]
[{"$nulls":3},"8.1","Аналогичные(\"похожие\") шаблоны"]
[{"$nulls":3},"8.2","Особенности шаблона"]
[{"$nulls":3},"8.3","Модуль на основе данного шаблона"]
[{"$nulls":3},"8.4","Процедуры загрузки данных в витрины"]